Workbook

Sheet Indice
B1: Sociedad: | C1: GAS CORONA S.A.E.C.A.
S2: 1 | T2: Enero
S3: 2 | T3: Febrero
S4: 3 | T4: Marzo
S5: 4 | T5: Abril
A6: Fecha Presentación: | B6: 2021-06-30 | S6: 5 | T6: Mayo
S7: 6 | T7: Junio
S8: 7 | T8: Julio
C9: INDICE | D9: REF. | S9: 8 | T9: Agosto
B10: Informacion General | S10: 9 | T10: Septiembre
C11: Descripción de la naturaleza y del negocio de la Sociedad | D11: Nota 1 | S11: 10 | T11: Octubre
C12: Resumen de las principales políticas contables | D12: Nota 2 | S12: 11 | T12: Noviembre
B13: Balance General | D13: BG | S13: 12 | T13: Diciembre
C14: Efectivo y equivalente de efectivo | D14: Nota 3
C15: Inversiones temporales | D15: Nota 4
C16: Cuentas por cobrar comerciales | D16: Nota 5
C17: Otros créditos | D17: Nota 6
C18: Cuentas por cobrar comerciales | D18: Nota 5
C19: Inventarios | D19: Nota 7
C20: Inversión en asociadas | D20: Nota 8
C21: Propiedades, planta y equipo | D21: Nota 9
C22: Activos disponibles para la venta | D22: Nota 10
C23: Activos intangibles | D23: Nota 11
C24: Goodwill | D24: Nota 12
C25: Cuentas por pagar comerciales | D25: Nota 13
C26: Préstamos a corto plazo | D26: Nota 14
C27: Porción corriente de la deuda a largo plazo | D27: Nota 15
C28: Remuneraciones y cargas sociales a pagar | D28: Nota 16
C29: Impuestos a pagar | D29: Nota 17
C30: Provisiones | D30: Nota 18
C31: Otros pasivos corrientes | D31: Nota 19
C32: Prestamos a largo plazo | D32: Nota 14
C33: Otros pasivos no corrientes | D33: Nota 19
C34: Capital integrado | D34: Nota 20
C35: Reserva de revalúo | D35: Nota 21
C36: Reserva legal | D36: Nota 21
C37: Reservas estatutarias | D37: Nota 21
C38: Reservas facultativas | D38: Nota 21
C39: Diferencia transitoria por conversión | D39: Nota 22
C40: Resultados acumulados | D40: Nota 23
C41: Interés minoritario | D41: Nota 24
B42: Estado de Resultados | D42: ER
C43: Ventas | D43: Nota 25
C44: Costo de ventas | D44: Nota 26
C45: Gastos de ventas | D45: Nota 27
C46: Gastos administrativos | D46: Nota 27
C47: Otros ingresos y gastos operativos | D47: Nota 28
C48: Ingresos financieros - neto | D48: Nota 29
C49: Gastos financieros - neto | D49: Nota 29
C50: Resultado de inversiones en asociadas | D50: Nota 30
C51: Resultado participación minoritaria | D51: Nota 31
C52: Impuesto a la renta | D52: Nota 32
C53: Resultado extraordinario neto de impuesto a la renta | D53: Nota 33
C54: Resultado sobre actividades discontinuadas neto de impuesto a la renta | D54: Nota 34
C55: Utilidad/(Pérdida) neta del año | D55: Nota 35
C56: Utilidad neta por acción ordinaria | D56: Nota 35
B57: Estado de Evolución del Patrimonio Neto | D57: EVPN
B58: Estado de Flujos de Efectivo | D58: EFE
B59: Otras Notas de los Estados Financieros
C60: Activos gravados | D60: Nota 36
C61: Contingencias y compromisos | D61: Nota 37
C62: Impuesto diferido | D62: Nota 38
C63: Hechos posteriores | D63: Nota 39
C64: Saldos y transacciones con partes relacionadas | D64: Nota 40

Sheet BG
D1: =Indice!C1 -> GAS CORONA S.A.E.C.A. | E1: Indice
A7: BALANCE GENERAL
A8: =IFERROR(IF(Indice!B6="","Al dia... de mes… de año 2XX2…","Al "&DAY(Indice!B6)&" de "&VLOOKUP(MONTH(Indice!B6),Indice!S:T,2,0)&" de "&YEAR(Indice!B6)),"Al dia... de mes… de año 2XX2…") -> Al 30 de Junio de 2021
A9: (En miles de guaraníes)
E11: Nota | F11: =IFERROR(IF(Indice!B6="","2XX2",YEAR(Indice!B6)),"2XX2") -> 2021 | G11: =IFERROR(YEAR(Indice!B6-365),"2XX1") -> 2020
B12: ACTIVOS
B13: Activos Corrientes
C14: Efectivo y equivalente de efectivo | E14: 3 | F14: ='Nota 3'!C25 -> 8227023107 | G14: ='Nota 3'!D25 -> 13217179084
C15: Inversiones temporales | E15: 4 | F15: ='Nota 4'!B18 -> 0 | G15: ='Nota 4'!C18 -> 0
C16: Cuentas por cobrar comerciales | E16: 5 | F16: ='Nota 5'!C27 -> 16792317257 | G16: ='Nota 5'!D27 -> 16723004630
C17: Otros créditos | E17: 6 | F17: ='Nota 6'!B18 -> 4874257050 | G17: ='Nota 6'!C18 -> 2526737377
C18: Inventarios | E18: 7 | F18: ='Nota 7'!B15 -> 28611993331 | G18: ='Nota 7'!C15 -> 22868138619
C19: Total activos corrientes | F19: =SUM(F14:F18) -> 58505590745 | G19: =SUM(G14:G18) -> 55335059710
B20: Activos no Corrientes
C21: Otros créditos | E21: 6 | F21: ='Nota 6'!F15 -> 0 | G21: ='Nota 6'!G15 -> 0
C22: Cuentas por cobrar comerciales | E22: 5 | F22: ='Nota 5'!C54 -> 0 | G22: ='Nota 5'!D54 -> 0
C23: Inversión en asociadas | E23: 8 | F23: ='Nota 8'!B8 -> 0 | G23: ='Nota 8'!C8 -> 0
C24: Propiedades, planta y equipo/Bienes de uso, neto | E24: 9 | F24: ='Nota 9'!L36 -> 41506329174 | G24: ='Nota 9'!M36 -> 37465955195
C25: Activos disponibles para la venta | E25: 10 | F25: ='Nota 10'!B21 -> 9764719375 | G25: ='Nota 10'!C21 -> 10976348629
C26: Activos intangibles | E26: 11 | F26: ='Nota 11'!B10 -> 806722825 | G26: ='Nota 11'!C10 -> 690923589
C27: Goodwill | E27: 12 | F27: ='Nota 12'!B11 -> 0 | G27: ='Nota 12'!C11 -> 0
C28: Total activos no corrientes | F28: =SUM(F21:F27) -> 52077771374 | G28: =SUM(G21:G27) -> 49133227413
B29: Total Activos | F29: =+F19+F28 -> 110583362119 | G29: =+G19+G28 -> 104468287123
B30: PASIVOS Y PATRIMONIO NETO
B31: Pasivos corrientes | F31: -1
C32: Cuentas por pagar comerciales | E32: 13 | F32: ='Nota 13'!D16 -> 19710705739 | G32: ='Nota 13'!E16 -> 16596879626
C33: Préstamos a corto plazo | E33: 14 | F33: ='Nota 14'!E29 -> 2030575342 | G33: ='Nota 14'!K29 -> 2008458916
C34: Porción corriente de la deuda a largo plazo | E34: 15 | F34: ='Nota 15'!B15 -> 0 | G34: ='Nota 15'!C15 -> 0
C35: Remuneraciones y cargas sociales a pagar | E35: 16 | F35: ='Nota 16'!B13 -> 1261161262 | G35: ='Nota 16'!C13 -> 1292702194
C36: Impuestos a pagar | E36: 17 | F36: ='Nota 17'!B12 -> 70186389 | G36: ='Nota 17'!C12 -> 80006821
C37: Provisiones | E37: 18 | F37: ='Nota 18'!B16 -> 11052044482 | G37: ='Nota 18'!C16 -> 12872278342
C38: Otros pasivos corrientes | E38: 19 | F38: ='Nota 19'!B14 -> 1713791642 | G38: ='Nota 19'!C14 -> 1716629332
C39: Total Pasivos Corrientes | F39: =+F32+F33+F34+F35+F36+F37+F38 -> 35838464856 | G39: =SUM(G32:G38) -> 34566955231
B40: Pasivos no corrientes
C41: Préstamos a largo plazo | E41: 14 | F41: ='Nota 14'!E49 -> 13291123287 | G41: ='Nota 14'!K49 -> 0
C42: Cuentas por pagar comerciales | E42: 13 | F42: ='Nota 13'!D25 -> 285816633 | G42: ='Nota 13'!E24 -> 117393930
C43: Otros pasivos no corrientes | E43: 19 | F43: ='Nota 19'!F14 -> 0 | G43: ='Nota 19'!G14 -> 0
C44: Total pasivos no corrientes | F44: =SUM(F41:F43) -> 13576939920 | G44: =SUM(G41:G43) -> 117393930
B46: Total Pasivos | F46: =+F39+F44 -> 49415404776 | G46: =+G39+G44 -> 34684349161
B47: Patrimonio Neto
C48: Capital integrado | E48: 20 | F48: ='Nota 20'!B14 -> 50000000000 | G48: ='Nota 20'!C14 -> 49200000000
C49: Reserva de revalúo | E49: 21 | F49: =' Nota 21'!B8 -> 0 | G49: =' Nota 21'!C8 -> 0
C50: Reserva legal | E50: 21 | F50: =' Nota 21'!B12 -> 8151731798 | G50: =' Nota 21'!C12 -> 6931012994
C51: Reservas estatutarias | E51: 21 | F51: =' Nota 21'!B16 -> 0 | G51: =' Nota 21'!C16 -> 0
C52: Reservas facultatitvas | E52: 21 | F52: =' Nota 21'!B20 -> 0 | G52: =' Nota 21'!C20 -> 0
C53: Diferencia transitoria por conversión | E53: 22 | F53: ='Nota 22'!B8 -> 0 | G53: ='Nota 22'!C8 -> 0
C54: Resultados acumulados | E54: 23 | F54: ='Nota 23'!B13 -> 3016225545 | G54: ='Nota 23'!C13 -> 13652924968
C55: Subtotal | F55: =SUM(F48:F54) -> 61167957343 | G55: =SUM(G48:G54) -> 69783937962
C56: Interés minoritario | E56: 24 | F56: ='Nota 24'!B8 -> 0 | G56: ='Nota 24'!C8 -> 0
B57: Total Patrimonio Neto | F57: =F55 -> 61167957343 | G57: =G55 -> 69783937962
B58: Total Pasivos y Patrimonio Neto | F58: =+F46+F57 -> 110583362119 | G58: =+G46+G57 -> 104468287123
B60: Las notas que se acompañan forman parte integrante de estos estados.
D66: Sra Luisa Isabel Schaerer de Pallares | E66: Sra. Maria Celeste Pallares Viveros
D67: Presidente | F67: Vicepresidente
C72: Dr. Raul Fernando Vargas | E72: C.P. Gloria Elizabeth Flecha Benitez
D73: Sindico Titular | F73: Contador

Sheet ER
A1: =Indice!C1 -> GAS CORONA S.A.E.C.A. | B1: Indice | D1: =ER!A4 -> 
A7: ESTADO DE RESULTADOS
A8: =IFERROR(IF(Indice!B6="","Al dia... de mes… de año 2XX2…","Al "&DAY(Indice!B6)&" de "&VLOOKUP(MONTH(Indice!B6),Indice!S:T,2,0)&" de "&YEAR(Indice!B6)),"Al dia... de mes… de año 2XX2…") -> Al 30 de Junio de 2021
A9: Comparativo con igual período del año anterior
A10: (En miles de guaraníes)
B12: Nota | C12: =IFERROR(IF(Indice!B6="","2XX2",YEAR(Indice!B6)),"2XX2") -> 2021 | D12: =IFERROR(YEAR(Indice!B6-365),"2XX1") -> 2020
A13: Ventas | B13: 25 | C13: ='Nota 25'!B26 -> 131094962348 | D13: ='Nota 25'!C26 -> 128112998020
A14: Costo de ventas | B14: 26 | C14: ='Nota 26'!B21 -> -105836036144 | D14: ='Nota 26'!C21 -> -92309296839
A15: Utilidad bruta | C15: =C13+C14 -> 25258926204 | D15: =D13+D14 -> 35803701181
A16: Gastos de ventas | B16: 27 | C16: =-'Nota 27'!B34 -> -14070539033 | D16: =-'Nota 27'!E34 -> -15010249271
A17: Gastos administrativos | B17: 27 | C17: =-'Nota 27'!C34 -> -8062427262 | D17: =-'Nota 27'!F34 -> -7568432281
A18: Otros ingresos y gastos operativos | B18: 28 | C18: ='Nota 28'!B15 -> 823406094 | D18: ='Nota 28'!C15 -> 721421053
A19: Resultado operativo | C19: =C15+C16+C17+C18 -> 3949366003 | D19: =D15+D16+D17+D18 -> 13946440682
A20: Ingresos financieros - neto | B20: 29 | C20: ='Nota 29'!B14 -> 468020563 | D20: ='Nota 29'!C14 -> 620668966
A21: Gastos financieros - neto | B21: 29 | C21: =-'Nota 29'!F14 -> -1401161021 | D21: =-'Nota 29'!G14 -> -914184680
A22: Subtotal | C22: =SUM(C20:C21) -> -933140458 | D22: =SUM(D20:D21) -> -293515714
A23: Resultado de inversiones en asociadas | B23: 30 | C23: ='Nota 30'!B13 -> 0 | D23: ='Nota 30'!C13 -> 0
A24: Resultados ordinarios antes de impuesto a la renta y participación minoritaria | C24: =C19+C22 -> 3016225545 | D24: =D19+D22 -> 13652924968
A25: Resultado participación minoritaria | B25: 31 | C25: ='Nota 31'!B12 -> 0 | D25: ='Nota 31'!C12 -> 0
A26: Resultado ordinario antes del impuesto a la renta
A27: Impuesto a la renta | B27: 32 | C27: ='Nota 32'!B14 -> 0 | D27: ='Nota 32'!C14 -> 0
A28: Resultado neto de actividades ordinarias | C28: =C26+C27 -> 0 | D28: =D26+D27 -> 0
A29: Resultado extraordinario neto de impuesto a la renta | B29: 33 | C29: ='Nota 32'!B14 -> 0 | D29: ='Nota 32'!C14 -> 0
A30: Resultado sobre actividades discontinuadas neto de impuesto a la renta | B30: 34 | C30: ='Nota 34'!B12 -> 0 | D30: ='Nota 34'!C12 -> 0
A31: Utilidad/(Pérdida) neta del año | C31: =C28+C29+C30 -> 0 | D31: =D28+D29+D30 -> 0
A32: Utilidad neta por acción ordinaria | B32: 35 | C32: ='Nota 35'!B10 -> 603245.109 | D32: ='Nota 35'!C10 -> 2774984.75
A35: Las notas que se acompañan forman parte integrante de estos estados.
A41: =BG!D66 -> Sra Luisa Isabel Schaerer de Pallares | C41: =BG!E66 -> Sra. Maria Celeste Pallares Viveros
A42: =BG!D67 -> Presidente | C42: =BG!F67 -> Vicepresidente
A50: =BG!C72 -> Dr. Raul Fernando Vargas | C50: =BG!E72 -> C.P. Gloria Elizabeth Flecha Benitez
A51: =BG!D73 -> Sindico Titular | C51: =BG!F73 -> Contador

Sheet EVPN
A1: =Indice!C1 -> GAS CORONA S.A.E.C.A. | H1: Indice
F4: ESTADO DE EVOLUCIÓN DEL PATRIMONIO NETO
H5: =IFERROR(IF(Indice!B6="","Al dia... de mes… de año 2XX2…","Al "&DAY(Indice!B6)&" de "&VLOOKUP(MONTH(Indice!B6),Indice!S:T,2,0)&" de "&YEAR(Indice!B6)),"Al dia... de mes… de año 2XX2…") -> Al 30 de Junio de 2021
A6: Comparativo con igual periodo del año anterior
A7: (En miles de guaraníes)
C10: Aporte de los propietarios | L10: Ganancias reservadas
C11: Capital suscripto e integrado | D11: Aporte para | F11: Primas de emisión | H11: Reserva de revalúo | J11: Reserva de revalúo técnico | L11: Reserva legal | N11: Reserva facultativa | P11: Resultados acumulados | R11: Interes Minoritario | T11: Total
D12: aumento de capital | P12: Total
A14: =IFERROR(IF(Indice!B6="","Saldo al .. de de 20X0 ","Saldo al "&DAY(Indice!B6)&" de "&VLOOKUP(MONTH(Indice!B6),Indice!S:T,2,0)&" de "&YEAR(Indice!B6-730)),"Saldo al .. de de 20X0 ") -> Saldo al 30 de Junio de 2019 | C14: 48000000000 | D14: 0 | F14: 0 | G14: 0 | H14: 1052061213 | J14: 0 | L14: 6931012994 | N14: 0 | P14: 11887053782 | T14: =SUM(C14:P14) -> 67870127989
A15: Saldo al 31 de diciembre de 2019 | C15: 48000000000 | H15: 1052061213 | L15: 6931012994 | P15: 24614338753 | T15: 80597412960
A16: Saldo reestructurado | C16: =C15 -> 48000000000 | D16: =D14 -> 0 | E16: 0 | F16: 0 | G16: 0 | H16: =H15 -> 1052061213 | I16: 0 | J16: 0 | K16: 0 | L16: =L15 -> 6931012994 | M16: 0 | N16: 0 | O16: 0 | P16: =P15 -> 24614338753 | T16: 80597412960
A17: Distribución de dividendos s/Acta de Asamblea General Ordinaria N° 458/20 de fecha 19/06/2020 | P17: -24466399966 | T17: -24466399966
A18: Integración del capital social | T18: 0
A19: Aumento del capital social s/Acta de Asamblea General Ordinaria N° 458 de fecha 19/06/2020 | C19: 1200000000 | H19: -1052061213 | L19: 0 | P19: -147938787 | T19: 0
A20: Revalúo de activos fijos | C20: 0 | H20: 0 | T20: 0
A21: Revalúo técnico | T21: 0
A22: Resultado del año | P22: 13652924968 | T22: 13652924968
A24: =IFERROR(IF(Indice!B6="","Saldo al .. de de 20X1 ","Saldo al "&DAY(Indice!B6)&" de "&VLOOKUP(MONTH(Indice!B6),Indice!S:T,2,0)&" de "&YEAR(Indice!B6-365)),"Saldo al .. de de 20X1 ") -> Saldo al 30 de Junio de 2020 | C24: =C16+C17+C18+C19+C21+C22+C20 -> 49200000000 | D24: =SUM(D14:D22) -> 0 | F24: =F16+F17+F18+F19+F21+F22+F20 -> 0 | G24: =SUM(G14:G23) -> 0 | H24: =H16+H17+H18+H19+H21+H22+H20 -> 0 | J24: =J16+J17+J18+J19+J21+J22+J20 -> 0 | L24: =L16+L17+L18+L19+L21+L22+L20 -> 6931012994 | N24: =N16+N17+N18+N19+N21+N22+N20 -> 0 | P24: =P16+P17+P18+P19+P21+P22+P20 -> 13652924968 | R24: =R16+R17+R18+R19+R21+R22+R20 -> 0 | T24: =T16+T17+T18+T19+T21+T22+T20 -> 69783937962
A25: Saldo al 31 de diciembre de 2020 | C25: 49200000000 | L25: 8151731796 | P25: 23193657282
A26: Saldo reestructurado | C26: =C25 -> 49200000000 | L26: =L25 -> 8151731796 | P26: =P25 -> 23193657282 | T26: =C26+L26+P26 -> 80545389078
A27: Distribución de dividendos s/Acta de Asamblea General Ordinaria N° 477/21 de fecha 16/04/2021 | P27: -22393657282 | T27: =SUM(C27:P27) -> -22393657282
A28: Integración del capital social | T28: 0
A29: Capitalizacion de dividendos s/Acta de Asamblea General Ordinaria N° 477/21 de fecha 16/04/2021 | C29: 800000000 | H29: 0 | P29: -800000000 | T29: 0
A30: Revalúo de activos fijos | T30: 0
A31: Desafectación de la reserva de revalúo técnico | T31: 0
A32: Resultado del año | P32: 3016225545 | T32: 3016225545
A34: =IFERROR(IF(Indice!B6="","Saldo al .. de de 20X2 ","Saldo al "&DAY(Indice!B6)&" de "&VLOOKUP(MONTH(Indice!B6),Indice!S:T,2,0)&" de "&YEAR(Indice!B6)),"Saldo al .. de de 20X2 ") -> Saldo al 30 de Junio de 2021 | C34: =C24+C27+C30+C31+C32+C29 -> 50000000000 | D34: 0 | E34: 0 | F34: 0 | G34: 0 | H34: 0 | I34: 0 | J34: 0 | K34: 0 | L34: =L26+L27 -> 8151731796 | M34: =M24+M27+M30+M31+M32+M29 -> 0 | N34: =N24+N27+N30+N31+N32+N29 -> 0 | O34: =O24+O27+O30+O31+O32+O29 -> 0 | P34: =P26+P27+P29+P32 -> 3016225545 | Q34: =Q24+Q27+Q30+Q31+Q32+Q29 -> 0 | R34: =R24+R27+R30+R31+R32+R29 -> 0 | T34: =T26+T27+T32 -> 61167957341
A35: Las notas que se acompañan forman parte integrante de estos estados.
A39: =BG!D66 -> Sra Luisa Isabel Schaerer de Pallares | C39: =BG!E66 -> Sra. Maria Celeste Pallares Viveros | J39: =BG!C72 -> Dr. Raul Fernando Vargas | N39: =BG!E72 -> C.P. Gloria Elizabeth Flecha Benitez
A40: =BG!D67 -> Presidente | C40: =BG!F67 -> Vicepresidente | J40: =BG!D73 -> Sindico Titular | N40: =BG!F73 -> Contador

Sheet EFE
A1: =Indice!C1 -> GAS CORONA S.A.E.C.A.
A5: ESTADO DE FLUJOS DE EFECTIVO (Método directo)
A6: =IFERROR(IF(Indice!B6="","Al dia... de mes… de año 2XX2…","Al "&DAY(Indice!B6)&" de "&VLOOKUP(MONTH(Indice!B6),Indice!S:T,2,0)&" de "&YEAR(Indice!B6)),"Al dia... de mes… de año 2XX2…") -> Al 30 de Junio de 2021
A7: Comparativo con igual periodo del año anterior
A8: (En miles de guaraníes)
B11: =IFERROR(IF(Indice!B6="","2XX2",YEAR(Indice!B6)),"2XX2") -> 2021 | C11: =IFERROR(YEAR(Indice!B6-365),"2XX1") -> 2020
A13: FLUJO DE EFECTIVO DE ACTIVIDADES OPERATIVAS
A14: Cobranzas efectuadas a clientes | B14: 24255194223 | C14: 27743766567
A15: Pagos efectuados a proveedores y empleados | B15: -25964973614 | C15: -15697950110
A16: Efectivo generado por las operaciones | B16: 417367096 | C16: 329148888
A17: Intereses pagados | B17: -979631699 | C17: -585202418
A18: Otros ingresos y (egresos) - neto | B18: -510806933 | C18: 349470706
A19: Pagos de impuesto a la renta | B19: -1004216125 | C19: 1716818641
A20: Flujo neto de efectivo de actividades operativas | B20: =SUM(B14:B19) -> -3787067052 | C20: =SUM(C14:C19) -> 13856052274
A22: FLUJO DE EFECTIVO DE ACTIVIDADES DE INVERSIÓN
A23: Adquisición de bienes de uso | B23: -4156173215 | C23: 6806004596
A24: Adquisición de bienes Curtiembre - fideicomitida
A25: Ventas de activos fijos | B25: 0 | C25: 0
A26: Ventas de bienes de uso | B26: 0 | C26: 0
A27: Intereses cobrados sobre inversiones | B27: 0 | C27: 0
A28: Aquisición de inversiones | B28: 0 | C28: 0
A29: Flujo neto de efectivo de actividades de inversión | B29: =SUM(B23:B28) -> -4156173215 | C29: =SUM(C23:C28) -> 6806004596
A31: FLUJO DE EFECTIVO DE ACTIVIDADES DE FINANCIACIÓN
A32: (Disminución) Incremento de préstamos | B32: 15724854076 | C32: -6327364409
A33: Aportes de capital recibidos
A34: Dividendos pagados | B34: -12852924968 | C34: -10687053782
A35: Flujo neto de efectivo de actividades de financiamiento | B35: =B32+B33+B34 -> 2871929108 | C35: =C32+C33+C34 -> -17014418191
A37: (Disminución) Incremento neto de efectivo | B37: -5071311159 | C37: 3647638679
A38: Efecto estimado de la diferencia de cambio sobre el saldo de efectivo | B38: 81155182 | C38: 334488163
A39: Efectivo al principio del año | B39: 13217179084 | C39: 9235052242
A41: Efectivo al final del periodo | B41: =+SUM(B37:B39) -> 8227023107 | C41: =+SUM(C37:C39) -> 13217179084
A43: Las notas que se acompañan forman parte integrante de estos estados.
A50: =BG!D66 -> Sra Luisa Isabel Schaerer de Pallares | B50: =BG!E66 -> Sra. Maria Celeste Pallares Viveros
A51: =BG!D67 -> Presidente | B51: =BG!F67 -> Vicepresidente
A58: =BG!C72 -> Dr. Raul Fernando Vargas | B58: =BG!E72 -> C.P. Gloria Elizabeth Flecha Benitez
A59: =BG!D73 -> Sindico Titular | B59: =BG!F73 -> Contador

Sheet Nota1
A1: =Indice!C1 -> GAS CORONA S.A.E.C.A. | I1: BG
A4: NOTAS A LOS ESTADOS FINANCIEROS CORRESPONDIENTES AL PERIODO TERMINADO AL 30 /06/2021
A5: Presentadas en forma comparativa con el periodo terminado | F5: =IFERROR("Al "&DAY(Indice!B6)&" de "&VLOOKUP(MONTH(Indice!B6),Indice!S:T,2,0)&" de "&YEAR(Indice!B6-365),"Al dia... de mes… de año 2XX1…") -> Al 30 de Junio de 2020
A7: NOTA 1 – DESCRIPCIÓN DE LA NATURALEZA Y DEL NEGOCIO DE LA COMPAÑÍA
A8: Gas Corona Sociedad Anónima fue constituido por Escritura Pública Nº 61
A9: de fecha 4 de agosto de 1971, pasada ante el Escribano Don José Livio
A10: Lezcano. Sus Estatutos Sociales fueron aprobados y reconocida su Personería
A11: Jurídica por Decreto del Poder Ejecutivo de la Nación Nº 22.810 de fecha 10
A12: de noviembre de 1971 e inscripto en el Registro Público de Comercio bajo el
A13: Nº 549, página 137 y siguientes, de fecha 25 de noviembre de 1971.
A15: Las modificaciones del Estatuto Social han sido las siguientes:
A17: Primera Modificación de los Estatutos Sociales: Por aumento de capital,
A18: según Decreto del Poder Ejecutivo de la Nación Nº 14.778 del 9 de mayo de
A19: 1975 e inscripta en el Registro Público de Comercio, bajo el número 171, de
A20: fecha 25 de Mayo de 1975, conforme en la Escritura Pública Nº 69
A21: protocolizada ante el Escribano Gervasio Recalde, en fecha 18 de marzo de
A22: 1975.
A24: Segunda Modificación de los Estatutos Sociales: Por aumento de Capital,
A25: Escritura Pública Nº 14 de fecha 4 de setiembre de 1986, autorizada por el
A26: Escribano Público Octavio Godoy Cáceres aprobada por Decreto del Poder
A27: Ejecutivo Nº 18.996 de fecha 29 de diciembre de1986 e inscripta en el Registro
A28: Público de Comercio, bajo el Nº 114, de fecha 4 de setiembre de 1986.
A30: Tercera Modificación de los Estatutos Sociales: Por Escritura Pública Nº 295
A31: de fecha 3 de octubre de 1996 autorizada por la Escribana Pública Carmen
A32: Estigarribia de Fassanello. Inscripta en el Registro de Personas Jurídicas y
A33: Asociaciones, bajo el Nº 648 y en el folio 6948, Serie B, en fecha 21 de
A34: noviembre de 1996, y en Registro Público de Comercio con el Nº 896 – Serie
A35: C – Folio 8240 del 25 de Noviembre de 1996.
A37: Cuarta Modificación de los Estatutos Sociales: Escritura de Aumento de
A38: Capital Social de la firma Gas Corona S.A. por Escritura Pública Nº 19 del 10
A39: de setiembre de 2003 ante la Escribana Carmen Estigarribia de Fassanello e
A40: inscripto en el Registro de Personas Jurídicas y Asociaciones con el Nº 537 –
A41: Folio 5492 y siguientes - Serie D del 4 de noviembre de 2003 y en el Registro
A42: Público de Comercio con el Nº 435 – Folio 435 – Folio 4356 y siguientes Serie
A43: C el 6 de noviembre de 2003.
A45: Quinta Modificación de los Estatutos Sociales: Escritura de Aumento de
A46: Capital y transformación de la firma Gas Corona S.A, en Emisora de Capital
A47: Abierto por Escritura Pública Nº 10 de fecha 27 de mayo de 2005 ante la
A48: Escribana Carmen Estigarribia de Fassanello e inscripto en el Registro de
A49: Personas Jurídicas y Asociaciones con el Nº 225 – Folio 2995 y siguientes –
A50: Serie A el 26 de julio de 2005 y en el Registro Público de Comercio con el Nº
A51: 241 – Folio 3552 y siguientes – Serie A el 26 de julio de 2005.
A53: Sexta Modificación de los Estatutos Sociales: Escritura de Aumento de
A54: Capital Social de la firma Gas Corona S.A.E.C.A. por Escritura Pública Nº 84
A55: del 14 de junio de 2007 ante la Escribana Carmen Estigarribia de Fassanello e
A56: inscripto en el Registro de Personas Jurídicas y Asociaciones con el Nº 283 –
A57: Folio 3239 y siguientes - Serie A del 4 de setiembre de 2007 y en el Registro
A58: Público de Comercio con el Nº 544 - Folio 5648 y siguientes Serie A del 4 de
A59: setiembre de 2007. Escritura de Emisión de Acciones dentro del Capital
A65: Social de la firma Gas Corona S.A.E.C.A. por Escritura Pública Nº 85 del 14
A66: de junio de 2007 ante la Escribana Carmen Estigarribia de Fassanello e
A67: inscripto en el Registro Público de Comercio con el Nº 325 - Folio 5233 y
A68: siguientes Serie C del 6 de setiembre de 2007.
A70: Séptima Modificación de los Estatutos Sociales: Escritura de Aumento de
A71: Capital Social y Emisión de Acciones dentro del Capital Social de la firma
A72: Gas Corona S.A.E.C.A. por Escritura Pública Nº 138 del 21 de agosto de 2008
A73: ante la Escribana Carmen Paredes Cabrera e inscripto en el Registro de
A74: Personas Jurídicas y Asociaciones con el Nº 653– Folio 6355 y siguientes -
A75: Serie C del 25 de setiembre de 2008 y en el Registro Público de Comercio con
A76: el Nº 734 - Folio 6612 y siguientes Serie E del 25 de setiembre de 2008.
A78: Protocolización Acta de Asamblea: Escritura de Protocolización por
A79: integración del Capital Social de la firma Gas Corona S.A.E.C.A. por
A80: Escritura Pública Nº 19 del 16 de marzo de 2010 ante la Escribana Carmen
A81: Paredes Cabrera e inscripto en el Registro de Personas Jurídicas y
A82: Asociaciones con el Nº 69 – Folio 776 y siguientes - Serie G del 07 de abril de
A83: 2010 y en el Registro Público de Comercio con el Nº 191 - Folio 2204 y
A84: siguientes - Serie F del 7 de abril de 2010.
A86: Octava Modificación de los Estatutos Sociales: Escritura de Aumento de
A87: Capital Social y Emisión de Acciones dentro del Capital Social de la firma
A88: Gas Corona S.A.E.C.A. por Escritura Pública Nº 195 del 22 de julio de 2010
A89: ante la Escribana Carmen Paredes Cabrera e inscripto en el Registro de
A90: Personas Jurídicas y Asociaciones con el Nº 423 – Folio 5203 y siguientes -
A91: Serie B del 1 de setiembre de 2010 y en el Registro Público de Comercio con
A92: el Nº 456 - Folio 4004 y siguientes - Serie C del 1 de setiembre de 2010.
A94: Protocolización Acta de Asamblea: Escritura de Protocolización por
A95: integración el Capital Social de la firma Gas Corona S.A.E.C.A. por Escritura
A96: Pública Nº 83 del 31 de agosto de 2011 ante la Escribana Carmen Paredes
A97: Cabrera e inscripto en el Registro Público de Comercio Sección Contratos
A98: bajo el Nº 407- Folio 4340 y siguientes - Serie H del 12 de septiembre de 2011.
A100: Novena Modificación de los Estatutos Sociales: Escritura de Aumento de
A101: Capital Social y Emisión de Acciones dentro del Capital Social de la firma
A102: Gas Corona S.A.E.C.A. por Escritura Pública Nº 17 del 05 de octubre de 2012
A103: ante la Escribana Myrian Garcete de Enciso Cuquejo e inscripto en el Registro
A104: Público de Comercio Sección Contratos bajo el Nº 1546- Folio 14406 y
A105: siguientes – Serie A del 19 de noviembre de 2012.
A107: Protocolización Acta de Asamblea: Escritura de Protocolización por
A108: integración el Capital Social de la firma Gas Corona S.A.E.C.A. por Escritura
A109: Pública Nº 19, folio 31 y sgtes. del 16 de agosto de 2013 ante la Escribana
A110: Myrian Garcete de Enciso e inscripto en el Registro Público de Comercio
A111: Sección Contratos bajo el Nº 157- Folio 1838 y siguientes - Serie E del 02 de
A112: septiembre de 2013.
A114: Decima Modificación de los Estatutos Sociales: Escritura de Aumento de
A115: Capital Social y Emisión de Acciones dentro del Capital Social de la firma
A116: Gas Corona S.A.E.C.A. por Escritura Pública Nº 19 del 03 de noviembre de
A117: 2014 ante la Escribana Myrian Garcete de Enciso Cuquejo e inscripto en el
A118: Registro Público de Comercio en la Serie C, bajo el Nº 560- Folio 6394 y
A119: siguientes y en el Registro Público de Contratos bajo el Nro. 336, Serie E –
A120: Folio 3351 de fecha 17 de julio de 2014.
A129: Protocolización Acta de Asamblea: Escritura de Protocolización por
A130: integración el Capital Social de la firma Gas Corona S.A.E.C.A. por Escritura
A131: Pública Nº 05, folio 07 y sgtes. del 01 de julio de 2015 ante la Escribana
A132: Myrian Garcete de Enciso e inscripto en el Registro Público de Comercio,
A133: Matricula Nro. 724, bajo el Nº 01 Folio 01-07 y siguientes – Serie Comercial
A134: del 02 de julio de 2015.
A136: Decima Primera Modificación de los Estatutos Sociales: Escritura de
A137: Aumento de Capital Social y Emisión de Acciones dentro del Capital Socia
A138: de la firma Gas Corona S.A.E.C.A. por Escritura Pública Nº 3 del 06 de mayo
A139: de 2016 ante la Escribana Myrian Garcete de Enciso Cuquejo e inscripto en el
A140: Registro Público de Comercio Sección Personas Jurídicas y Asociaciones, en
A141: la Serie C, bajo el Nº 1 Folio 6394 y siguientes y en el Registro Público de
A142: Contratos bajo el Nro. 336, Serie Folio 1 de fecha 15 de junio de 2016. Y en la
A143: Dirección de los Registros Públicos Sección Comercio en la Serie C, bajo el
A144: Nro. 02, folio 08-17, de fecha 15/06/2016.
A147: Decima Segunda Modificación de los Estatutos Sociales: Escritura de
A148: Aumento de Capital Social y Emisión de Acciones dentro del Capital Social
A149: de la firma Gas Corona S.A.E.C.A. por Escritura Pública Nº 7 del 15 de junio
A150: de 2017 ante la Escribana Myrian Garcete de Enciso Cuquejo e inscripto en el
A151: Registro Público de Comercio Sección Personas Jurídicas y Asociaciones, en
A152: la Serie Comercial, bajo el Nº 2, Folio 13 en fecha 23/08/2017 y en la
A153: Dirección Gral. Registro Público; Sección Comercio bajo el Nro. 03, Folio 18
A154: de fecha 29 de setiembre de 2017.
A156: Protocolización Acta de Asamblea: Escritura de Protocolización por
A157: integración el Capital Social de la firma Gas Corona S.A.E.C.A. por Escritura
A158: Pública Nº 13, folio 36 y sgtes. del 04 de junio de 2018 ante la Escribana
A159: Myrian Garcete de Enciso e inscripto en el Registro Público de Comercio,
A160: Matricula Nro. 724, bajo el Nº 4 Folio 28-36 y siguientes – Serie Comercial del
A161: 15 de octubre de 2018.
A163: Decima Tercera Modificación de los Estatutos Sociales: Escritura de
A164: Aumento de Capital Social y Emisión de Acciones dentro del Capital Social
A165: de la firma Gas Corona S.A.E.C.A. por Escritura Pública Nº 20 del 04 de junio
A166: de 2019 ante la Escribana Myrian Garcete de Enciso Cuquejo e inscripto en el
A167: Registro Público de Comercio Sección Personas Jurídicas y Asociaciones, en
A168: la Serie Comercial, bajo el Nº 3, Folio 26 en fecha 12/08/2019 y en la
A169: Dirección Gral. Registro Público; Sección Comercio bajo el Nro. 5, Folio 37
A170: de fecha 12 de agosto de 2019.
A171: De acuerdo a la última modificación de los Estatutos Sociales, el Capital
A172: suscripto ha sido aumentado a Gs. 52.000.000.000 (Guaraníes cicuenta
A173: y dos mil millones) y el Capital integrado a Gs. 50.000.000.000 (Guaraníes cin-
A174: cuenta mil discientos millones), que se encuentra de Tramites de protocolizacion
A176: El objetivo de la sociedad comprende todas la actividades lícitas a las que
A177: podrá dedicarse por cuenta propia, de terceros o asociados a terceros, y en
A178: especial al fraccionamiento y comercialización de los productos derivados
A179: del petróleo, la importación, comercialización, promoción y venta de toda
A180: clase de mercaderías, productos y elementos para cocinas a Gas y demás
A181: derivados; la importación de productos para el hogar. Podrá asimismo,
A182: comprar, vender, fraccionar, importar, exportar y envasar toda clase de
A183: productos, artículos y mercaderías, adquirir, establecer y exportar toda clase
A184: de empresas agrícolas, industriales, ganaderas y de cualquier otro tipo.
A185: Podrá también descontar, comprar y vender letras, pagarés, cheques, giros y
A186: otros documentos negociables, comprar y vender cédulas hipotecarias y
A187: cualquier otra clase de papeles negociables o títulos valores de oferta pública
A188: o privada.
A192: La sociedad podrá emitir acciones obligaciones u otros títulos valores y
A193: podrán ser negociables en oferta pública a través del Mercado de Valores de
A194: conformidad a las leyes que regulan este mercado. La sociedad podrá actuar
A195: por cuenta propia, de terceros o asociada con otras personas o sociedades
A196: participando en su capital. La Sociedad queda autorizada con plena
A197: capacidad jurídica para entender y desarrollar Cualquier tipo de actividades
A198: comerciales, industriales, inmobiliarias, empresariales o cualquier otra
A199: actividad lícita sin más limitaciones que las previstas en las leyes respectivas
A200: y este estatuto.
A202: El Capital Social se fija en la suma de Gs. 52.000.000.000 (Guaraníes Cincuenta
A203: y dos mil millones) y estará dividida en cincuenta series de Gs. 1.000.000.000
A204: (Guaraníes un mil millones) cada serie. Cada serie estará compuesta
A205: de 100 (cien) acciones, de Gs. 10.000.000 (Guaraníes diez millones).
A207: La Sociedad tendrá una duración de cincuenta (50) años contados a partir del
A208: día en que la modificación de los Estatutos Sociales sea registrada en los
A209: correspondientes Registros Públicos, pudiendo ser prorrogado su término o
A210: anticiparse su disolución por resolución de la Asamblea General de
A211: Accionistas.
A213: En fecha 30 de agosto de 2005, según Resolución Nº 877/05, la Comisión
A214: Nacional de Valores resuelve, calificar a Gas Corona Sociedad Anónima
A215: como Sociedad Emisora de Capital Abierto, y en consecuencia autorizarla
A216: para operar en el mercado de valores e inscribirla en los Registros que al
A217: efecto lleva la Comisión, llevando la nomenclatura de S.A.E.C.A.
A227: =BG!D66 -> Sra Luisa Isabel Schaerer de Pallares | E227: =BG!E66 -> Sra. Maria Celeste Pallares Viveros
A228: =BG!D67 -> Presidente | E228: =BG!F67 -> Vicepresidente
A235: =BG!C72 -> Dr. Raul Fernando Vargas | E235: =BG!E72 -> C.P. Gloria Elizabeth Flecha Benitez
A236: =BG!D73 -> Sindico Titular | E236: =BG!F73 -> Contador

Sheet Nota 2
A1: =Indice!C1 -> GAS CORONA S.A.E.C.A. | I1: BG
A6: NOTA 2 - RESUMEN DE LAS PRINCIPALES POLÍTICAS CONTABLES
A7: Resumen de las principales políticas contables: a modo referencial, se incluyen las siguientes revelaciones de políticas contables en estados financieros de uso general que podrá ser tenida en consideración por las sociedades emisoras para la preparación de este capítulo de los estados financieros:
A10: a. Bases de contabilización (Según NIF Bases de preparación de los Estados Financieros)
A11: Los estados financieros se han preparado siguiendo los criterios de las Normas de Información Financiera (NIF) emitidas por el Consejo de Contadores Públicos del Paraguay sobre la base de costos históricos, excepto para el caso de activos y pasivos en moneda extranjera. Las propiedades, planta y equipo tuvieron ajustes por revaluación hasta finales del año 2019, sobre la base del coeficiente de variación del IPC anual. A partir del ejercicio 2020, la Ley 6380/2019 estableció que el revalúo se aplicará sobre las propiedades, planta y equipo, cuando el IPC acumulado desde la promulgación de la citada ley supere el 20%. Cabe destacar que al 30/06/2021, el coeficiente acumulado del IPC según el Banco Central del Paraguay, fue del 1,5%. En la República del Paraguay no se reconoce en forma integral los efectos de la inflación sobre la situación patrimonial y financiera de la sociedad, sobre los resultados de sus operaciones y los flujos de efectivo, en atención a que la corrección monetaria no constituye una práctica contable obligatoria en el Paraguay.
A12: De haberse aplicado una corrección monetaria integral de los estados financieros, podrían haber surgido diferencias en la presentación de la situación patrimonial y financiera de la sociedad, en los resultados de sus operaciones y en los flujos de efectivo al 30/06/2021. Según el índice general de precios del consumo (IPC) publicado por el Banco Central del Paraguay, la inflación acumulada al 30/06/2021 fue de 1,5%.
A15: b. Uso de estimaciones contables
A16: La preparación de los presentes estados financieros requiere que la Gerencia de la sociedad realice estimaciones y evaluaciones que afectan el monto de los activos y pasivos registrados y contingentes, como así también los ingresos y egresos registrados en el ejercicio. Los resultados reales futuros pueden diferir de las estimaciones y evaluaciones realizadas a la fecha de preparación de los presentes estados financieros.
A18: c. Moneda extranjera
A19: Los activos y pasivos en moneda extranjera se valúan a los tipos de cambio vigentes a la fecha de cierre del ejercicio.
A20: Las diferencias de cambio originadas por fluctuaciones en los tipos de cambio producidos entre las fechas de concertación de las operaciones y su liquidación o valuación al cierre del ejercicio, son reconocidas en resultados.
C23: =IFERROR(IF(Indice!B6="","2XX2",YEAR(Indice!B6)),"2XX2") -> 2021 | G23: =IFERROR(YEAR(Indice!B6-365),"2XX1") -> 2020
B24: Indicar moneda | C24: Simbología según ISO 4217 | D24: Miles de G. | F24: Indicar moneda | G24: Simbología según ISO 4217 | H24: Miles de G.
A25: Activos | B25: DOLARES | C25: USD | D25: =49516706+821782327+133917650+1931360333 -> 2936577016 | F25: DOLARES | G25: USD | H25: =49956504+2717071007+25747445+1113264860 -> 3906039816
A27: Pasivos | B27: DOLARES | C27: USD | F27: DOLARES | G27: USD | H27: =782893242+388350740+6833497 -> 1178077479
D28: =409353234+172685389 -> 582038623
A29: Posición neta | B29: DOLARES | C29: USD | D29: =D25-D28 -> 2354538393 | F29: DOLARES | G29: USD | H29: =H25-H27 -> 2727962337
A32: A la fecha de emisión de estos estados financieros, el tipo de cambio de la moneda extranjera (Dólar Estadounidense) utilizado fue como sigue: Para los activos, TC Comprador Gs. 6.733,98; para los pasivos, TC Vendedor Gs. 6.761,37.
A34: d. Efectivo y equivalentes de efectivo
A35: Se considerarán dentro del concepto de efectivo los saldos en efectivo, disponibilidades en cuentas bancarias y toda inversión de muy alta liquidez, con vencimiento originalmente pactado no superior a tres meses.
A37: e. Inversiones
A38: Al cierre del trimestre, la Sociedad no poseía inversiones corrientes.
A40: f. Previsión para cuentas de dudoso cobro/incobrables
A41: Las previsiones para cuentas de dudoso cobro se determinan al cierre de cada ejercicio y/o mensualmente sobre la base del estudio de la cartera de créditos realizado con el objeto de determinar la porción no recuperable de las cuentas a cobrar. Las previsiones para cuentas de dudoso cobro se determinan mensualmente de acuerdo con el siguiente esquema de cálculo: (Indicar política de constitución de previsiones)
A42: Criterios de Clasificación utilizados | B42: De | C42: A | D42: % Previsiones sobre Cartera
A43: Normal | B43: 1 | C43: 90 | D43: 0
A44: En Gestión de Cobro | B44: 91 | C44: 180 | D44: 0.2
A45: En Gestión de Cobro Judicial | B45: 181 | C45: 10000 | D45: 1
A48: g. Inventarios
A49: Las existencias se valúan al menor entre su costo de adquisición o de producción y su valor neto de realización (NIF 12, párrafo 5). Para determinar el consumo (baja de inventarios) se aplicarán las fórmulas de costeo siguientes: PPP (Precio Promedio Ponderado).
A52: h. Activos disponibles para la venta
A53: Al cierre del trimestre, la Sociedad no mantenía activos disponbles para la venta.
A54: i. Previsiones para desvalorización y deterioro de inventarios
A55: Las previsiones para desvalorización y deterioro de inventarios han sido estimadas tomando como base la valorización del stock deteriorado existente al cierre del ejercicio.
A57: j. Propiedades, planta y equipo
A58: Las propiedades, planta y equipo se exponen a su costo histórico ajustado por el coeficiente de revalúo emitido por la Autoridad Tributaria hasta el 31 de diciembre de 2019, menos la correspondiente depreciación acumulada. El incremento neto por la re-expresión se acredita a la respectiva reserva patrimonial, cuyo saldo puede ser utilizado únicamente para aumentar el capital.
A59: El costo de las mejoras que extienden la vida útil de los bienes o aumentan su capacidad productiva es imputado a las cuentas respectivas del activo. Los gastos de mantenimiento son cargados a resultados.
A60: La depreciación es calculada por el método de línea recta y se aplica consistentemente de ejercicio a ejercicio. A partir del ejercicio 2020, la Ley 6380/2019 estableció la determinación obligatoria de una tasa de salvamento sobre los activos fijos, por lo que la base de la depreciación fue disminuido al valor histórico del activo menos su tasa de salvamento.
A61: Los efectos de los ajustes sobre Propiedades, Planta y Equipo de operaciones discontinuadas se exponen formando parte de la línea “Resultados sobre actividades discontinuadas neto de impuesto a la renta” en el Estado de Resultados.
A64: k. Intangibles
A65: Los intangibles se exponen a su costo incurrido menos las correspondientes amortizaciones acumuladas al cierre del año.
A66: Las amortizaciones son calculadas por el método que refleja el patrón de consumo de los beneficios económicos derivados de los intangibles o por el método de línea recta (se explica el método elegido) si el patrón no pudiera ser determinado de forma fiable (NIF 15, párrafo 64). Ver Nota 11.
A67: Este rubro incluye costos incurridos por la sociedad relacionados con ingresos futuros.
A77: l. Goodwill
A78: La Sociedad no posee operaciones de Goodwill que deban ser expuestos.
A79: m. Reconocimiento de ingresos y egresos
A80: Los ingresos y egresos son reconocidos en función de su devengamiento.
A82: n. Impuesto a la renta
A83: El impuesto a la renta que se carga a los resultados del año se basa en la utilidad contable antes de este concepto, ajustada por las partidas que la ley incluye o excluye para la determinación de la utilidad gravable a la que se aplica la tasa legal vigente del impuesto y por el reconocimiento del cargo o el ingreso originado por la aplicación del impuesto diferido, si los hubiere.
A85: o. Restricciones a la distribución de utilidades
A86: Deberá mencionarse cualquier tipo de restricción sobre la distribución de utilidades como ser restricciones estatutarias o de entes reguladores y asambleas.
A88: p. Derechos en Fideicomiso
A89: La Sociedad no cuenta con operaciones de fideicomiso que reportar.
A90: q. Otros principios, prácticas y métodos
A91: La Sociedad ha mantenido de manera uniforme y constante las políticas contables arriba mencionadas y no existieron modificaciones sustanciales que pudieran ser reportables.
A97: =BG!D66 -> Sra Luisa Isabel Schaerer de Pallares | D97: =BG!E66 -> Sra. Maria Celeste Pallares Viveros
A98: =BG!D67 -> Presidente | D98: =BG!F67 -> Vicepresidente
A106: =BG!C72 -> Dr. Raul Fernando Vargas | D106: =BG!E72 -> C.P. Gloria Elizabeth Flecha Benitez
A107: =BG!D73 -> Sindico Titular | D107: =BG!F73 -> Contador

Sheet Nota 3
A6: =Indice!C1 -> GAS CORONA S.A.E.C.A. | E6: BG
A7: Obs.: Revelar situación en el caso de contar con disponibilidad restringida
A12: NOTA 3 - EFECTIVO Y EQUIVALENTE DE EFECTIVO
A13: En miles de guaranies
A14: La composición de la cuenta es la siguiente:
A16: Concepto | C16: =IFERROR(IF(Indice!B6="","2XX2",YEAR(Indice!B6)),"2XX2") -> 2021 | D16: =IFERROR(YEAR(Indice!B6-365),"2XX1") -> 2020
A18: Caja
A19: Recaudaciones a depositar | C19: 839428400 | D19: 819113186
A20: Bancos Locales - Moneda local Guaraníes | C20: =7277264495-C21 -> 6272047812 | D20: =12316065898-D21 -> 9523290942
A21: Bancos Locales - Moneda extranjera Dólares | C21: =49516706+821782327+133917650 -> 1005216683 | D21: =49956504+2717071007+25747445 -> 2792774956
A22: Bancos Locales - Moneda extranjera otros | C22: 0 | D22: 0
A23: Bancos en el Extranjero - Moneda extranjera Dólares | C23: 0 | D23: 0
A24: Fondo Fijo - Moneda local Guaraníes | C24: 110330212 | D24: 82000000
A25: Total | C25: =SUM($C$18:C24) -> 8227023107 | D25: =SUM($D$18:D24) -> 13217179084
A33: =BG!D66 -> Sra Luisa Isabel Schaerer de Pallares | B33: =BG!E66 -> Sra. Maria Celeste Pallares Viveros
A34: =BG!D67 -> Presidente | B34: =BG!F67 -> Vicepresidente
A44: =BG!C72 -> Dr. Raul Fernando Vargas | C44: =BG!E72 -> C.P. Gloria Elizabeth Flecha Benitez
A45: =BG!D73 -> Sindico Titular | C45: =BG!F73 -> Contador

Sheet Nota 4
A1: =Indice!C1 -> GAS CORONA S.A.E.C.A. | D1: BG
A4: NOTA 4 - INVERSIONES TEMPORALES
A5: NO APLICA PARA GAS CORONA ESTA NOTA
A6: La composición de la cuenta es la siguiente:
B7: En miles de guaranies
A8: Concepto | B8: =IFERROR(IF(Indice!B6="","2XX2",YEAR(Indice!B6)),"2XX2") -> 2021 | C8: =IFERROR(YEAR(Indice!B6-365),"2XX1") -> 2020
A9: Inversiones en Titulos del Sistema Financiero Local - Moneda Local Guaraníes | B9: 0 | C9: 0
A10: Inversiones en Titulos del Sistema Financiero Local - Moneda Extranjera Dólares | B10: 0 | C10: 0
A11: Inversiones en Titulos del Sistema Financiero Local - Moneda Extranjera otros | B11: 0 | C11: 0
A12: Inversiones en Mercado Bursatil Local - Moneda Local Guaraníes | B12: 0 | C12: 0
A13: Inversiones en Mercado Bursatil Local - Moneda Extranjera Dólares | B13: 0 | C13: 0
A14: Inversiones en Mercado Bursatil Extranjera - Moneda Extranjera Dólares | B14: 0 | C14: 0
A15: Inversiones en Mercado Bursatil Extranjera - Moneda Extranjera otros | B15: 0 | C15: 0
A16: Otras inversiones - Moneda Local Guaraníes | B16: 0 | C16: 0
A17: Otras inversiones - Moneda Extranjera Dólares | B17: 0 | C17: 0
A18: Total | B18: =SUM($B$9:B17) -> 0 | C18: =SUM($C$9:C17) -> 0
A25: Sra Luisa Isabel Schaerer de Pallares | C25: Sra. Maria Celeste Pallares Viveros
A26: Presidente | C26: Vicepresidente
A34: Dr. Raul Fernando Vargas | C34: C.P. Gloria Elizabeth Flecha Benitez
A35: Sindico Titular | C35: Contador

Sheet Nota 5
A1: =Indice!C1 -> GAS CORONA S.A.E.C.A. | F1: BG
A2: Detallar cartera vencida y no vencida por clientes locales, extranjeros y partes relacionadas
A3: Se indicarán en este rubro todos los créditos a favor de la empresa provenientes de las ventas de Mercaderías y/o servicios (atendiendo a la actividades ordinarias de la empresa), separando las ventas locales en moneda nacional y/o extranjera de las ventas fuera del país en moneda nacional y/o extranjera
A5: NOTA 5 – CUENTAS POR COBRAR COMERCIALES
A6: Las cuentas a cobrar comerciales a corto plazo se integran como sigue:
C7: En miles de guaraníes
C8: =IFERROR(IF(Indice!B6="","2XX2",YEAR(Indice!B6)),"2XX2") -> 2021 | D8: =IFERROR(YEAR(Indice!B6-365),"2XX1") -> 2020 | F8: Composición de la cartera de créditos por ventas | G8: 2021-06-30
A9: Deudores por ventas locales | B9: Moneda Local Guaraníes | C9: =3438417744+87731035 -> 3526148779 | D9: =85689000+2515914747 -> 2601603747 | F9: Situación | G9: Monto | H9: % Previsiones sobre Cartera
A10: Deudores por ventas locales | B10: Moneda Extranjera Dólares | C10: 0 | D10: 0 | F10: A Total Cartera no Vencida | G10: 6970425975 | H10: 0
A11: Deudores por ventas locales | B11: Moneda Extranjera otros | C11: 0 | D11: 0 | F11: B. Total Cartera Vencida | G11: =G13+G14+G15 -> 7383330782
A12: Deudores por ventas en el exterior | B12: Moneda Local Guaraníes | C12: 0 | D12: 0 | F12: Composición Cartera Vencida
A13: Deudores por ventas en el exterior | B13: Moneda Extranjera Dólares | C13: 0 | D13: 0 | F13: Normal | G13: 137982659 | H13: 0
A14: Deudores por ventas en el exterior | B14: Moneda Extranjera otros | C14: 0 | D14: 0 | F14: En Gestión de Cobro | G14: 1496838867 | H14: 0.1801
A15: Deudores - Entidad relacionada | B15: Moneda Local Guaraníes | C15: =5079098722 -> 5079098722 | D15: 4313400393 | F15: En Gestión de Cobro Judicial | G15: 5748509256 | H15: 1
A16: Deudores - Entidad relacionada | B16: Moneda Extranjera Dólares | C16: 0 | D16: 0
A17: Deudores - Entidad relacionada | B17: Moneda Extranjera otros | C17: 0 | D17: 0 | F17: Total de la cartera de créditos (A+B) | G17: =G10+G11 -> 14353756757
A18: Cheques adelantados recibidos de clientes | B18: Moneda Local Guaraníes | C18: 8306422069 | D18: 10077557065
A19: Cheques adelantados recibidos de clientes | B19: Moneda Extranjera Dólares | C19: 0 | D19: 0 | F19: (-) Total Previsiones | G19: =-((G10*H10)+(SUMPRODUCT(G13:G15,H13:H15))) -> -6018089936
A20: Cheques adelantados recibidos de clientes | B20: Moneda Extranjera otros | C20: 0 | D20: 0
A21: Cheques rechazados | B21: Moneda Local Guaraníes | C21: 3404244445 | D21: 3254040183 | F21: TOTAL NETO DE LA CARTERA DE CRÉDITOS | G21: =G17+G19 -> 8335666821
A22: Cheques rechazados | B22: Moneda Extranjera Dólares | C22: 0 | D22: 0
A23: Gestion de Cobro | B23: Moneda Local Guaraníes | C23: 5748509256 | D23: 5748509256 | F23: Observaciones
A24: Otros Creditos | B24: Moneda Extranjera Dólares | C24: 0 | D24: 0 | F24: Criterios de Clasificación utilizados | G24: De | H24: A
A25: Otros Creditos | B25: Moneda Extranjera otros | C25: 0 | D25: 0 | F25: Normal | G25: 1 | H25: 90
A26: Menos Previsiones | C26: -9272106014 | D26: =-269556575-5598509256-150000000-3254040183 -> -9272106014 | F26: En Gestión de Cobro | G26: 91 | H26: 180
A27: Total | C27: =+SUM($C$9:C26) -> 16792317257 | D27: =+SUM($D$9:D26) -> 16723004630 | F27: En Gestión de Cobro Judicial | G27: 181 | H27: 10000
A30: Las cuentas a cobrar comerciales a largo plazo se integran como sigue:
C31: En miles de guaraníes
C32: =IFERROR(IF(Indice!B6="","2XX2",YEAR(Indice!B6)),"2XX2") -> 2021 | D32: =IFERROR(YEAR(Indice!B6-365),"2XX1") -> 2020
A33: Deudores por ventas locales | B33: Moneda Local Guaraníes
A34: Deudores por ventas locales | B34: Moneda Extranjera Dólares | F34: Sra Luisa Isabel Schaerer de Pallares | G34: Sra. Maria Celeste Pallares Viveros
A35: Deudores por ventas locales | B35: Moneda Extranjera otros | F35: Presidente | G35: Vicepresidente
A36: Deudores por ventas en el exterior | B36: Moneda Local Guaraníes
A37: Deudores por ventas en el exterior | B37: Moneda Extranjera Dólares
A38: Deudores por ventas en el exterior | B38: Moneda Extranjera otros
A39: Deudores - Entidad relacionada | B39: Moneda Local Guaraníes
A40: Deudores - Entidad relacionada | B40: Moneda Extranjera Dólares
A41: Deudores - Entidad relacionada | B41: Moneda Extranjera otros
A42: Cheques adelantados recibidos de clientes | B42: Moneda Local Guaraníes
A43: Cheques adelantados recibidos de clientes | B43: Moneda Extranjera Dólares | F43: Dr. Raul Fernando Vargas | G43: C.P. Gloria Elizabeth Flecha Benitez
A44: Cheques adelantados recibidos de clientes | B44: Moneda Extranjera otros | F44: Sindico Titular | G44: Contador
A45: Deudores en gestión judicial | B45: Moneda Local Guaraníes
A46: Deudores en gestión judicial | B46: Moneda Extranjera Dólares
A47: Deudores en gestión judicial | B47: Moneda Extranjera otros
A48: Cheques rechazados | B48: Moneda Local Guaraníes
A49: Cheques rechazados | B49: Moneda Extranjera Dólares
A50: Otros | B50: Moneda Local Guaraníes
A51: Otros | B51: Moneda Extranjera Dólares
A52: Otros | B52: Moneda Extranjera otros
A53: Menos Previsiones
A54: Total | C54: =+SUM($C$33:C53) -> 0 | D54: =+SUM($D$33:D53) -> 0

Sheet Nota 6
A1: =Indice!C1 -> GAS CORONA S.A.E.C.A. | D1: BG
A4: NOTA 6 - OTROS CRÉDITOS
A5: En miles de guaranies
A6: El rubro de otros créditos se compone como sigue:
A8: Corrientes | E8: No corrientes
A10: Concepto | B10: =IFERROR(IF(Indice!B6="","2XX2",YEAR(Indice!B6)),"2XX2") -> 2021 | C10: =IFERROR(YEAR(Indice!B6-365),"2XX1") -> 2020 | E10: Concepto | F10: =IFERROR(IF(Indice!B6="","2XX2",YEAR(Indice!B6)),"2XX2") -> 2021 | G10: =IFERROR(YEAR(Indice!B6-365),"2XX1") -> 2020
A11: Anticipos a proveedores | B11: =1931360333+38436863 -> 1969797196 | C11: =343913759+1113264860 -> 1457178619 | E11: Garantía de Alquiler | F11: 0 | G11: 0
A12: Gastos pagados por adelantado | B12: =2566642162-1429164384 -> 1137477778 | C12: =781225200-62452048 -> 718773152 | E12: I.V.A. Crédito fiscal | F12: 0 | G12: 0
A13: Anticipo Impuesto a la Renta | B13: 1017497318 | C13: 0 | E13: Anticipos a proveedores | F13: 0 | G13: 0
A14: Retención Impuesto a la Renta | B14: =102309292 -> 102309292 | C14: =63555154+4252712 -> 67807866 | E14: Seguros a Vencer | F14: 0 | G14: 0
A15: Retención Impuesto al Valor agregado | B15: 0 | C15: 0 | E15: Total | F15: =SUM(F11:F14) -> 0 | G15: =SUM(G11:G14) -> 0
A16: IVA Credito Fiscal | B16: 20708595 | C16: 78311646
A17: Deudores Varios | B17: =38180510+507155514+34986666+46144181 -> 626466871 | C17: 204666094
A18: Total | B18: =SUM($B$11:B17) -> 4874257050 | C18: =SUM($C$11:C17) -> 2526737377
A24: Sra Luisa Isabel Schaerer de Pallares | B24: Sra. Maria Celeste Pallares Viveros | E24: Dr. Raul Fernando Vargas | F24: C.P. Gloria Elizabeth Flecha Benitez
A25: Presidente | B25: Vicepresidente | E25: Sindico Titular | F25: Contador

Sheet Nota 7
A1: =Indice!C1 -> GAS CORONA S.A.E.C.A. | D1: BG
A4: NOTA 7 – INVENTARIOS
A6: Los bienes de cambio están compuestos de la siguiente manera:
B7: En miles de guaranies
A8: Concepto | B8: =IFERROR(IF(Indice!B6="","2XX2",YEAR(Indice!B6)),"2XX2") -> 2021 | C8: =IFERROR(YEAR(Indice!B6-365),"2XX1") -> 2020
A9: Mercaderías GLP | B9: 9024943175 | C9: 3801088698
A10: Envases - Tanques - Repuestos | B10: =18061117693+213074566 -> 18274192259 | C10: =17693541781+282919729+5169130 -> 17981630640
A11: Importacion en curso | B11: 499634194 | C11: 301276120
A12: Materia prima | B12: 0 | C12: 0
A13: Mercaderias Combustibles- Lubricantes | B13: 813223703 | C13: =52176512+3936392+728030257 -> 784143161
A14: (-) Previsión para desvalorización y deterioro de inventario | B14: 0 | C14: 0
A15: Total | B15: =SUM(B9:B14) -> 28611993331 | C15: =SUM(C9:C14) -> 22868138619
A21: Sra Luisa Isabel Schaerer de Pallares | B21: Sra. Maria Celeste Pallares Viveros
A22: Presidente | B22: Vicepresidente
A30: Dr. Raul Fernando Vargas | B30: C.P. Gloria Elizabeth Flecha Benitez
A31: Sindico Titular | B31: Contador

Sheet Nota 8
A1: =Indice!C1 -> GAS CORONA S.A.E.C.A. | D1: BG
A3: NO APLICA
A4: Nota 8 - INVERSIONES EN ASOCIADAS
A5: En miles de guaraníes
A6: Las inversiones en sociedades donde no se ejerce control se describen a continuación
A7: Periodo | B7: =IFERROR(IF(Indice!B6="","2XX2",YEAR(Indice!B6)),"2XX2") -> 2021 | C7: =IFERROR(YEAR(Indice!B6-365),"2XX1") -> 2020
A8: Total Inversión | B8: =SUM($I$13:I18) -> 0 | C8: 0 | D8: <-- Indicar Monto
A10: a) Datos sobre la sociedad: | G10: a) Datos sobre la inversión:
D11: =IFERROR(IF(Indice!B6="","2XX2",YEAR(Indice!B6)),"2XX2") -> 2021
A12: Nombre de Sociedad | B12: RUC | C12: Cantidad de acciones | D12: Total Patrimonio neto | E12: Total del resultado | G12: Cantidad de acciones | H12: Participación sobre los votos (%) | I12: Total Inversión (miles de Gs) | J12: Participación sobre el Patrimonio Neto (%) | K12: Total valuación patrimonial proporcional | L12: Resultado sobre inversiones
K13: =J13*D13 -> 0 | L13: =J13*E13 -> 0
K14: =J14*D14 -> 0 | L14: =J14*E14 -> 0
K15: 0 | L15: 0
K16: 0 | L16: 0
K17: 0 | L17: 0
K18: 0 | L18: 0
A22: Sra Luisa Isabel Schaerer de Pallares | D22: Sra. Maria Celeste Pallares Viveros | G22: Dr. Raul Fernando Vargas | J22: C.P. Gloria Elizabeth Flecha Benitez
A23: Presidente | D23: Vicepresidente | F23: Sindico Titular | J23: Contador

Sheet Nota 9
A1: =Indice!C1 -> GAS CORONA S.A.E.C.A. | L1: BG
A5: Obs.:
A6: Incluir aclaraciones en los siguientes casos:
A7: 1. Cuando los bienes de uso tienen alguna restricción sobre su utilización, como por ejemplo cuando están garantizando obligaciones. En su caso también hacer referencia a la nota correspondiente.
A8: 2. Cuando exista alguna previsión por desvalorización (“deterioro”), detallando la evolución de la misma en el transcurso del año.
A9: 3. Si se están capitalizando intereses al costo de bienes de uso. En su caso deberá aclararse la tasa utilizada para la capitalización.
A10: Ver adicionalmente Norma de Información Financiera N° 11 Propiedades, planta y equipo
A12: NOTA 9 - PROPIEDADES, PLANTA Y EQUIPO - NETO
A13: En miles de guaraníes | J13: -1
B15: Costo histórico revaluado al inicio del año - Periodo | C15: Adquisiciones | D15: Bajas | E15: Revalúo del año | F15: Valor de origen revaluado al final del periodo | G15: Depreciación acumulada revaluada al inicio del año | H15: Depreciación del año | I15: Bajas de depreciaciones acumuladas | J15: Revalúo depreciación acumulada del año | K15: Depreciación acumulada revaluada al final del año | L15: Valor neto contable | M15: Valor neto contable
L16: =IFERROR(IF(Indice!B6="","2XX2",YEAR(Indice!B6)),"2XX2") -> 2021 | M16: =IFERROR(YEAR(Indice!B6-365),"2XX1") -> 2020
A17: Inmuebles | B17: 8936968875 | C17: 0 | D17: 0 | E17: 0 | F17: =B17 -> 8936968875 | G17: 0 | H17: 0 | I17: 0 | J17: 0 | K17: =G17+H17-I17+J17 -> 0 | L17: =F17 -> 8936968875 | M17: 8936968875
A18: Edificios y Mejoras | B18: 12890210567 | C18: 38229545 | D18: 0 | E18: 0 | F18: =B18+C18-D18+E18 -> 12928440112 | G18: 4098730681 | H18: =(10857261*3)+(12522741*3) -> 70140006 | I18: 0 | J18: 0 | K18: =G18+H18-I18+J18 -> 4168870687 | L18: =F18-K18 -> 8759569425 | M18: 8803573057
A19: Maquinarias y Equipos | B19: 11149223895 | C19: 72996183 | D19: 0 | E19: 0 | F19: =B19+C19-D19+E19 -> 11222220078 | G19: 7178921837 | H19: =40937302*3 -> 122811906 | I19: 0 | J19: 0 | K19: =G19+H19-I19+J19 -> 7301733743 | L19: =F19-K19 -> 3920486335 | M19: 3764551104
A20: Maquinas de Oficina | B20: 109299967 | C20: 0 | D20: 0 | E20: 0 | F20: 109299967 | G20: 100108415 | H20: =200000*3 -> 600000 | I20: 0 | J20: 0 | K20: 100708415 | L20: 8591552 | M20: 10740916
A21: Tanques p/Gas Licuado Petroleo | B21: 16418820463 | C21: 0 | D21: 0 | E21: 0 | F21: 16418820463 | G21: 12427637885 | H21: =75762150*3 -> 227286450 | I21: 0 | J21: 0 | K21: 12654924335 | L21: 3763896128 | M21: -63995780
A22: Instalaciones | B22: 2308845150 | C22: 152692728 | D22: 0 | E22: 0 | F22: 2461537878 | G22: 1986221640 | H22: =20540363*3 -> 61621089 | I22: 0 | J22: 0 | K22: 2047842729 | L22: 413695149 | M22: 376850133
A23: Muebles y Utiles | B23: 1133535696 | C23: 4772728 | D23: 0 | E23: 0 | F23: 1138308424 | G23: 712248065 | H23: =8529216*3 -> 25587648 | I23: 0 | J23: 0 | K23: 737835713 | L23: 400472711 | M23: 352529469
A24: Muebles y Bancos de Trabajo | B24: 647486907 | C24: 0 | D24: 0 | E24: 0 | F24: 647486907 | G24: 528737716 | H24: =2206300*3 -> 6618900 | I24: 0 | J24: 0 | K24: 535356616 | L24: 112130291 | M24: 136734969
A25: Herramientas | B25: 179954356 | C25: 0 | D25: 0 | E25: 0 | F25: 179954356 | G25: 91921539 | H25: =1341084*3 -> 4023252 | I25: 0 | J25: 0 | K25: 95944791 | L25: 84009565 | M25: 44410302
A26: Equipos de Seguridad y Proteccion | B26: 1313335499 | C26: 0 | D26: 0 | E26: 0 | F26: 1313335499 | G26: 1308552396 | H26: =17721432*3 -> 53164296 | I26: 0 | J26: 0 | K26: 1361716692 | L26: -48381193 | M26: 149952590
A27: Equipos de Comunicación | B27: 344472924 | C27: 0 | D27: 0 | E27: 0 | F27: 344472924 | G27: 332173492 | H27: =505744*3 -> 1517232 | I27: 0 | J27: 0 | K27: 333690724 | L27: 10782200 | M27: 9076160
A28: Rodados | B28: 23969106322 | C28: 413782147 | D28: 0 | E28: 0 | F28: 24382888469 | G28: 17003729516 | H28: =182668457*3 -> 548005371 | I28: 0 | J28: 0 | K28: 17551734887 | L28: 6831153582 | M28: 6713155601
A29: Embarcacion | B29: 29860051 | C29: 0 | D29: 0 | E29: 0 | F29: 29860051 | G29: 4444275 | H29: =99670*3 -> 299010 | I29: 0 | J29: 0 | K29: 4743285 | L29: 25116766 | M29: 26163301
A30: Equiposde Informatica | B30: 1004330905 | C30: 5306636 | D30: 0 | E30: 0 | F30: 1009637541 | G30: 927587644 | H30: =3681335*3 -> 11044005 | I30: 0 | J30: 0 | K30: 938631649 | L30: 71005892 | M30: 96175791
A31: Equipos de Jardineria | B31: 17542918 | C31: 0 | D31: 0 | E31: 0 | F31: 17542918 | G31: 17542921 | H31: 0 | I31: 0 | J31: 0 | K31: =G31+H31-I31+J31 -> 17542921 | L31: -3 | M31: -3
A32: Maquinarias Estaciones de Servicio | B32: 18190414103 | C32: 0 | D32: 0 | E32: 0 | F32: 18190414103 | G32: 13374785220 | H32: =72450284*3 -> 217350852 | I32: 0 | J32: 0 | K32: =G32+H32-I32+J32 -> 13592136072 | L32: 4598278031 | M32: 5017380486
A33: Obras y Proyectos en curso | B33: 3337849872 | C33: 280703996 | D33: 0 | E33: 0 | F33: 3618553868 | G33: 0 | H33: 0 | I33: 0 | J33: 0 | K33: 0 | L33: 3618553868 | M33: 74064545
A34: Barcaza | B34: 0 | C34: 0 | D34: 0 | E34: 0 | F34: 0 | G34: 0 | H34: 0 | I34: 0 | J34: 0 | K34: 0 | L34: 0 | M34: 3017623679
B35: 0
A36: Totales | B36: =SUM(B17:B35) -> 101981258470 | C36: 968483963 | D36: 0 | E36: 0 | F36: 102949742433 | G36: 60093343242 | H36: 1350070017 | I36: 0 | J36: 0 | K36: 61443413259 | L36: =SUM($L$17:L35) -> 41506329174 | M36: =SUM($M$17:M35) -> 37465955195
A43: Sra Luisa Isabel Schaerer de Pallares | C43: Sra. Maria Celeste Pallares Viveros | G43: Dr. Raul Fernando Vargas | K43: C.P. Gloria Elizabeth Flecha Benitez
A44: Presidente | C44: Vicepresidente | G44: Sindico Titular | K44: Contador

Sheet Nota 10
A1: =Indice!C1 -> GAS CORONA S.A.E.C.A. | C1: BG
A4: NOTA 10 – ACTIVOS DISPONIBLES PARA LA VENTA
B5: En miles de guaranies
B6: =IFERROR(IF(Indice!B6="","2XX2",YEAR(Indice!B6)),"2XX2") -> 2021 | C6: =IFERROR(YEAR(Indice!B6-365),"2XX1") -> 2020
A7: Propiedad, planta y equipo
A8: (Detallar bienes de uso)
A9: Total | B9: =B8 -> 0 | C9: =C8 -> 0
A11: Activos intangibles
A12: (Detallar activos intangibles)
A13: Total | B13: =B12 -> 0 | C13: =C12 -> 0
A15: Inversiones
A16: Mejoras Propiedad de Terceros | B16: 930523831 | C16: 1159576109
A17: Contratos con EESS | B17: 3649810953 | C17: 4683809510
A18: Mantenimiento de Garrafas | B18: 5184384591 | C18: 5132963010
A19: Total | B19: =SUM(B16:B18) -> 9764719375 | C19: =SUM(C16:C18) -> 10976348629
A21: Total general | B21: =B9+B13+B19 -> 9764719375 | C21: =C9+C13+C19 -> 10976348629
A30: Sra Luisa Isabel Schaerer de Pallares | B30: Sra. Maria Celeste Pallares Viveros
A31: Presidente | B31: Vicepresidente
A39: Dr. Raul Fernando Vargas | B39: C.P. Gloria Elizabeth Flecha Benitez
A40: Sindico Titular | B40: Contador

Sheet Nota 11
A1: =Indice!C1 -> GAS CORONA S.A.E.C.A. | F1: BG
A4: NOTA 11 – ACTIVOS INTANGIBLES
B5: En miles de guaranies
A6: Activos intangibles | B6: =IFERROR(IF(Indice!B6="","2XX2",YEAR(Indice!B6)),"2XX2") -> 2021 | C6: =IFERROR(YEAR(Indice!B6-365),"2XX1") -> 2020
A7: Implementacion de Sotfware | B7: 2422605632 | C7: 2036555719
A8: Menos amortización acumulada | B8: -1615882807 | C8: -1345632130
A10: Total general | B10: =SUM(B7:B9) -> 806722825 | C10: =SUM(C7:C9) -> 690923589
A17: Sra Luisa Isabel Schaerer de Pallares | C17: Sra. Maria Celeste Pallares Viveros
A18: Presidente | C18: Vicepresidente
A26: Dr. Raul Fernando Vargas | C26: C.P. Gloria Elizabeth Flecha Benitez
A27: Sindico Titular | C27: Contador

Sheet Nota 12
A1: =Indice!C1 -> GAS CORONA S.A.E.C.A. | E1: BG
A4: NO APLICA
A5: NOTA 12 – GOODWILL
B6: En miles de guaranies
A7: Goodwill | B7: =IFERROR(IF(Indice!B6="","2XX2",YEAR(Indice!B6)),"2XX2") -> 2021 | C7: =IFERROR(YEAR(Indice!B6-365),"2XX1") -> 2020
B8: 0 | C8: 0
B9: 0 | C9: 0
A11: Total general | B11: =SUM(B8:B10) -> 0 | C11: =SUM(C8:C10) -> 0
A20: Sra Luisa Isabel Schaerer de Pallares | C20: Sra. Maria Celeste Pallares Viveros
A21: Presidente | C21: Vicepresidente
A29: Dr. Raul Fernando Vargas | B29: C.P. Gloria Elizabeth Flecha Benitez
A30: Sindico Titular | B30: Contador

Sheet Nota 13
A1: =Indice!C1 -> GAS CORONA S.A.E.C.A. | C1: BG
A4: NOTA 13 – CUENTAS POR PAGAR COMERCIALES
A5: En miles de guaranies
A6: Las cuentas por pagar comerciales se componen como sigue:
A8: Corrientes | B8: Simbología según ISO 4217 | C8: Indicación de Moneda | D8: =IFERROR(IF(Indice!B6="","2XX2",YEAR(Indice!B6)),"2XX2") -> 2021 | E8: =IFERROR(YEAR(Indice!B6-365),"2XX1") -> 2020
A9: Proveedores - Entidades Relacionadas | B9: PYG | C9: =IFERROR(VLOOKUP(B9,'Base de Monedas'!A:B,2,0),"") -> Guaraní | D9: 1279200 | E9: =317100+135900 -> 453000
A10: Otros proveedores del exterior | B10: PYG | C10: =IFERROR(VLOOKUP(B10,'Base de Monedas'!A:B,2,0),"") -> Guaraní | D10: 409353234 | E10: 782893242
A11: Proveedores locales | B11: PYG | C11: =IFERROR(VLOOKUP(B11,'Base de Monedas'!A:B,2,0),"") -> Guaraní | D11: 1943872639 | E11: 1268913611
A12: Proveedores Combustibles y GLP | B12: PYG | C12: =IFERROR(VLOOKUP(B12,'Base de Monedas'!A:B,2,0),"") -> Guaraní | D12: 13880811500 | E12: 10882023000
A13: Proveedores con Cheques Emitidos | B13: PYG | C13: =IFERROR(VLOOKUP(B13,'Base de Monedas'!A:B,2,0),"") -> Guaraní | D13: 2801062156 | E13: =2900005711 -> 2900005711
A14: Documentos a Pagar | B14: PYG | C14: =IFERROR(VLOOKUP(B14,'Base de Monedas'!A:B,2,0),"") -> Guaraní | D14: 172685389 | E14: 388350740
A15: Acreedores Varios | B15: PYG | C15: =IFERROR(VLOOKUP(B15,'Base de Monedas'!A:B,2,0),"") -> Guaraní | D15: =398969291+102672330 -> 501641621 | E15: =203784320+153311317+17144685 -> 374240322
A16: Total cuentas a pagar por comerciales | D16: =SUM($D$9:D15) -> 19710705739 | E16: =SUM($E$9:E15) -> 16596879626
A20: No Corrientes | B20: Simbología según ISO 4217 | C20: Indicación de Moneda | D20: =IFERROR(YEAR(Indice!B6),"2XX2") -> 2021 | E20: =IFERROR(YEAR(Indice!B6-365),"2XX1") -> 2020
A21: Proveedores - Entidades Relacionadas | C21: =IFERROR(VLOOKUP(B21,'Base de Monedas'!A:B,2,0),"") -> 
A22: Otros proveedores del exterior | C22: =IFERROR(VLOOKUP(B22,'Base de Monedas'!A:B,2,0),"") -> 
A23: Proveedores locales | C23: =IFERROR(VLOOKUP(B23,'Base de Monedas'!A:B,2,0),"") -> 
A24: Documentos a Pagar | B24: PYG | C24: =IFERROR(VLOOKUP(B24,'Base de Monedas'!A:B,2,0),"") -> Guaraní | D24: 285816633 | E24: 117393930
A25: Total cuentas a pagar por comerciales | D25: =SUM($D$21:D24) -> 285816633 | E25: 170082944
A32: Sra Luisa Isabel Schaerer de Pallares | B32: Sra. Maria Celeste Pallares Viveros | C32: Dr. Raul Fernando Vargas | D32: C.P. Gloria Elizabeth Flecha Benitez
A33: Presidente | B33: Vicepresidente | C33: Sindico Titular | D33: Contador

Sheet Nota 14
A1: =Indice!C1 -> GAS CORONA S.A.E.C.A. | E1: BG | L1: BG
A4: NOTA 14 – PRESTAMOS A CORTO Y LARGO PLAZO
A6: (a) Equivalentes al tipo de cambio referencial de la fecha de presentacion
A7: (b) Obligaciones garantizadas por valor de guaraníes
A9: Corrientes
D10: =IFERROR(IF(Indice!B6="","2XX2",YEAR(Indice!B6)),"2XX2") -> 2021 | J10: =IFERROR(YEAR(Indice!B6-365),"2XX1") -> 2020
A11: Préstamos de Entidades Locales | B11: Vencimiento | C11: Símbolo de Moneda | D11: Moneda | E11: Importe (miles de Gs) | F11: Tipo de Garantía | H11: Vencimiento | I11: Símbolo de Moneda | J11: Moneda | K11: Importe (miles de Gs) | L11: Tipo de Garantía
A12: Banco Regional S.A. | C12: PYG | D12: =IFERROR(VLOOKUP(C12,'Base de Monedas'!A:B,2,0),"") -> Guaraní | E12: 0 | J12: =IFERROR(VLOOKUP(I12,'Base de Monedas'!A:B,2,0),"") ->  | K12: 0
D13: =IFERROR(VLOOKUP(C13,'Base de Monedas'!A:B,2,0),"") ->  | J13: =IFERROR(VLOOKUP(I13,'Base de Monedas'!A:B,2,0),"") -> 
A14: Deudas bursátiles | D14: =IFERROR(VLOOKUP(C14,'Base de Monedas'!A:B,2,0),"") ->  | J14: =IFERROR(VLOOKUP(I14,'Base de Monedas'!A:B,2,0),"") -> 
A15: Programa Emision Global de Bonos G2 | C15: PYG | D15: =IFERROR(VLOOKUP(C15,'Base de Monedas'!A:B,2,0),"") -> Guaraní | E15: 0 | H15: 2020-08-19 | I15: PYG | J15: =IFERROR(VLOOKUP(I15,'Base de Monedas'!A:B,2,0),"") -> Guaraní | K15: 1000000000
A16: Programa Emision Global de Bonos G2 | C16: PYG | D16: =IFERROR(VLOOKUP(C16,'Base de Monedas'!A:B,2,0),"") -> Guaraní | E16: 0 | H16: 2020-11-18 | I16: PYG | J16: =IFERROR(VLOOKUP(I16,'Base de Monedas'!A:B,2,0),"") -> Guaraní | K16: 1000000000
A17: Programa Emision Global de Bonos G3 | B17: 2021-07-15 | C17: PYG | D17: =IFERROR(VLOOKUP(C17,'Base de Monedas'!A:B,2,0),"") -> Guaraní | E17: 1000000000
A18: Programa Emision Global de Bonos G3 | B18: 2022-01-13 | C18: PYG | D18: =IFERROR(VLOOKUP(C18,'Base de Monedas'!A:B,2,0),"") -> Guaraní | E18: 1000000000
A19: Préstamos de Entidades en el Exterior | D19: =IFERROR(VLOOKUP(C19,'Base de Monedas'!A:B,2,0),"") ->  | J19: =IFERROR(VLOOKUP(I19,'Base de Monedas'!A:B,2,0),"") -> 
A20: Nombre de la entidad financiera | D20: =IFERROR(VLOOKUP(C20,'Base de Monedas'!A:B,2,0),"") ->  | J20: =IFERROR(VLOOKUP(I20,'Base de Monedas'!A:B,2,0),"") -> 
A21: Intereses préstamos entidades financieras a pagar | D21: =IFERROR(VLOOKUP(C21,'Base de Monedas'!A:B,2,0),"") ->  | J21: =IFERROR(VLOOKUP(I21,'Base de Monedas'!A:B,2,0),"") -> 
A22: Intereses a pagar | C22: PYG | D22: =IFERROR(VLOOKUP(C22,'Base de Monedas'!A:B,2,0),"") -> Guaraní | E22: 0
A23: (-) Intereses a Devengar | C23: PYG | D23: =IFERROR(VLOOKUP(C23,'Base de Monedas'!A:B,2,0),"") -> Guaraní | E23: 0
A24: Intereses deudas Bursátiles a Pagar | D24: =IFERROR(VLOOKUP(C24,'Base de Monedas'!A:B,2,0),"") ->  | E24: 0 | J24: =IFERROR(VLOOKUP(I24,'Base de Monedas'!A:B,2,0),"") -> 
A25: Intereses a pagar PYG | B25: 2022-01-13 | C25: PYG | D25: =IFERROR(VLOOKUP(C25,'Base de Monedas'!A:B,2,0),"") -> Guaraní | E25: 1459739726 | H25: 2020-11-18 | I25: PYG | J25: =IFERROR(VLOOKUP(I25,'Base de Monedas'!A:B,2,0),"") -> Guaraní | K25: 70910964
A26: (-) Intereses a Devengar | B26: 2022-01-13 | C26: PYG | D26: =IFERROR(VLOOKUP(C26,'Base de Monedas'!A:B,2,0),"") -> Guaraní | E26: -1429164384 | H26: 2020-11-18 | I26: PYG | J26: =IFERROR(VLOOKUP(I26,'Base de Monedas'!A:B,2,0),"") -> Guaraní | K26: -62452048
A27: Intereses a pagar USD | E27: 0 | I27: PYG | J27: =IFERROR(VLOOKUP(I27,'Base de Monedas'!A:B,2,0),"") -> Guaraní | K27: 0
A28: (-) Intereses a Devengar | D28: =IFERROR(VLOOKUP(C28,'Base de Monedas'!A:B,2,0),"") ->  | E28: 0 | I28: PYG | J28: =IFERROR(VLOOKUP(I28,'Base de Monedas'!A:B,2,0),"") -> Guaraní | K28: 0
A29: Total | D29: =IFERROR(VLOOKUP(C29,'Base de Monedas'!A:B,2,0),"") ->  | E29: =SUM($E$12:E28) -> 2030575342 | K29: =SUM($K$12:K28) -> 2008458916
A30: No Corrientes
B31: =IFERROR(YEAR(Indice!B6),"2XX2") -> 2021 | J31: =IFERROR(YEAR(Indice!B6-365),"2XX1") -> 2020
A32: Préstamos de Entidades Locales | B32: Vencimiento | C32: Símbolo de Moneda | D32: Moneda | E32: Importe (miles de Gs) | F32: Tipo de garantía | H32: Vencimiento | I32: Símbolo de Moneda | J32: Moneda | K32: Importe (miles de Gs) | L32: Tipo de Garantía
A33: Banco Regional S.A. | D33: =IFERROR(VLOOKUP(C33,'Base de Monedas'!A:B,2,0),"") ->  | E33: 0 | I33: PYG | J33: =IFERROR(VLOOKUP(I33,'Base de Monedas'!A:B,2,0),"") -> Guaraní | K33: 0
A34: Deudas bursátiles | D34: =IFERROR(VLOOKUP(C34,'Base de Monedas'!A:B,2,0),"") ->  | J34: =IFERROR(VLOOKUP(I34,'Base de Monedas'!A:B,2,0),"") ->  | K34: 0
A35: Programa Emision Global de Bonos G3 | B35: 2022-07-14 | C35: PYG | D35: =IFERROR(VLOOKUP(C35,'Base de Monedas'!A:B,2,0),"") -> Guaraní | E35: 1000000000 | I35: PYG | J35: =IFERROR(VLOOKUP(I35,'Base de Monedas'!A:B,2,0),"") -> Guaraní | K35: 0
A36: Programa Emision Global de Bonos G3 | B36: 2023-01-12 | C36: PYG | D36: =IFERROR(VLOOKUP(C36,'Base de Monedas'!A:B,2,0),"") -> Guaraní | E36: 2000000000
A37: Programa Emision Global de Bonos G3 | B37: 2023-07-13 | C37: PYG | D37: =IFERROR(VLOOKUP(C37,'Base de Monedas'!A:B,2,0),"") -> Guaraní | E37: 2000000000
A38: Programa Emision Global de Bonos G3 | B38: 2024-01-11 | C38: PYG | D38: =IFERROR(VLOOKUP(C38,'Base de Monedas'!A:B,2,0),"") -> Guaraní | E38: 2000000000
A39: Programa Emision Global de Bonos G3 | B39: 2024-07-11 | C39: PYG | D39: =IFERROR(VLOOKUP(C39,'Base de Monedas'!A:B,2,0),"") -> Guaraní | E39: 2000000000
A40: Programa Emision Global de Bonos G3 | B40: 2025-01-09 | C40: PYG | D40: =IFERROR(VLOOKUP(C40,'Base de Monedas'!A:B,2,0),"") -> Guaraní | E40: 2000000000
A41: Programa Emision Global de Bonos G3 | B41: 2025-07-10 | C41: PYG | D41: =IFERROR(VLOOKUP(C41,'Base de Monedas'!A:B,2,0),"") -> Guaraní | E41: 2000000000
A42: Préstamos de Entidades en el Exterior | D42: =IFERROR(VLOOKUP(C42,'Base de Monedas'!A:B,2,0),"") ->  | J42: =IFERROR(VLOOKUP(I42,'Base de Monedas'!A:B,2,0),"") ->  | K42: 0
A43: Intereses préstamos entidades financieras a pagar | D43: =IFERROR(VLOOKUP(C43,'Base de Monedas'!A:B,2,0),"") ->  | J43: =IFERROR(VLOOKUP(I43,'Base de Monedas'!A:B,2,0),"") -> 
A44: Intereses a pagar | B44: 2025-07-10 | C44: PYG | D44: =IFERROR(VLOOKUP(C44,'Base de Monedas'!A:B,2,0),"") -> Guaraní | E44: 2682630137 | I44: PYG | J44: =IFERROR(VLOOKUP(I44,'Base de Monedas'!A:B,2,0),"") -> Guaraní | K44: 0
A45: (-) Intereses a Devengar | B45: 2025-07-10 | C45: PYG | D45: =IFERROR(VLOOKUP(C45,'Base de Monedas'!A:B,2,0),"") -> Guaraní | E45: -2391506850 | I45: PYG | J45: =IFERROR(VLOOKUP(I45,'Base de Monedas'!A:B,2,0),"") -> Guaraní | K45: 0
A46: Intereses deudas bursátiles a pagar | D46: =IFERROR(VLOOKUP(C46,'Base de Monedas'!A:B,2,0),"") ->  | J46: =IFERROR(VLOOKUP(I46,'Base de Monedas'!A:B,2,0),"") -> 
A47: Intereses a pagar | D47: =IFERROR(VLOOKUP(C47,'Base de Monedas'!A:B,2,0),"") ->  | I47: PYG | J47: =IFERROR(VLOOKUP(I47,'Base de Monedas'!A:B,2,0),"") -> Guaraní | K47: 0
A48: (-) Intereses a Devengar | D48: =IFERROR(VLOOKUP(C48,'Base de Monedas'!A:B,2,0),"") ->  | I48: PYG | J48: =IFERROR(VLOOKUP(I48,'Base de Monedas'!A:B,2,0),"") -> Guaraní | K48: 0
A49: Total | D49: =IFERROR(VLOOKUP(C49,'Base de Monedas'!A:B,2,0),"") ->  | E49: =SUM($E$33:E48) -> 13291123287 | J49: =IFERROR(VLOOKUP(I49,'Base de Monedas'!A:B,2,0),"") ->  | K49: 0
J52: =IFERROR(VLOOKUP(I52,'Base de Monedas'!H:I,2,0),"") -> 
A54: Sra Luisa Isabel Schaerer de Pallares | D54: Sra. Maria Celeste Pallares Viveros | I54: Dr. Raul Fernando Vargas | K54: C.P. Gloria Elizabeth Flecha Benitez
A55: Presidente | D55: Vicepresidente | I55: Sindico Titular | K55: Contador

Sheet Nota 15
A1: =Indice!C1 -> GAS CORONA S.A.E.C.A. | D1: BG
A4: NO APLICA
A5: NOTA 15 – PORCION CORRIENTE DE LA DEUDA A LARGO PLAZO
B7: En miles de guaranies
A8: Porción corriente de la deuda a largo plazo | B8: =IFERROR(IF(Indice!B6="","2XX2",YEAR(Indice!B6)),"2XX2") -> 2021 | C8: =IFERROR(YEAR(Indice!B6-365),"2XX1") -> 2020
A9: Cuentas por pagar comerciales
A10: Préstamos bancarios
A11: Bonos bursátiles
A12: Intereses bancarios a pagar
A13: Intereses bursatiles a pagar
A14: (nuevas cuentas a incluir)
A15: Total general | B15: =SUM($B$9:B14) -> 0 | C15: =SUM($C$9:C14) -> 0
A21: Sra Luisa Isabel Schaerer de Pallares | B21: Sra. Maria Celeste Pallares Viveros
A22: Presidente | B22: Vicepresidente
A30: Dr. Raul Fernando Vargas | B30: C.P. Gloria Elizabeth Flecha Benitez
A31: Sindico Titular | B31: Contador

Sheet Nota 16
A1: =Indice!C1 -> GAS CORONA S.A.E.C.A. | F1: BG
A4: NOTA 16 – REMUNERACIONES Y CARGAS SOCIALES A PAGAR
B6: En miles de guaranies
A7: Remuneraciones y cargas sociales a pagar | B7: =IFERROR(IF(Indice!B6="","2XX2",YEAR(Indice!B6)),"2XX2") -> 2021 | C7: =IFERROR(YEAR(Indice!B6-365),"2XX1") -> 2020
A8: Sueldo y otras remuneraciones a pagar | B8: 2894147 | C8: 55544333
A9: Aportes y retenciones a pagar | B9: 229029152 | C9: 224866066
A10: Remuneraciones al personal superior a pagar | B10: 0 | C10: 0
A11: Aguinaldos a Pagar | B11: 432467469 | C11: 434672115
A12: Vacaciones a Pagar | B12: 596770494 | C12: 577619680
A13: Total | B13: =SUM($B$8:B12) -> 1261161262 | C13: =SUM($C$8:C12) -> 1292702194
A21: Sra Luisa Isabel Schaerer de Pallares | B21: Sra. Maria Celeste Pallares Viveros
A22: Presidente | B22: Vicepresidente
A30: Dr. Raul Fernando Vargas | B30: C.P. Gloria Elizabeth Flecha Benitez
A31: Sindico Titular | B31: Contador

Sheet Nota 17
A1: =Indice!C1 -> GAS CORONA S.A.E.C.A. | G1: BG
A5: NOTA 17 – IMPUESTOS A PAGAR
B7: En miles de guaranies
A8: Impuestos a pagar | B8: =IFERROR(IF(Indice!B6="","2XX2",YEAR(Indice!B6)),"2XX2") -> 2021 | C8: =IFERROR(YEAR(Indice!B6-365),"2XX1") -> 2020
A9: Impuesto a la renta a pagar | B9: 0 | C9: 0
A10: Retencion Renta a Pagar | B10: 5122498 | C10: 20632992
A11: Retencion Proveedores IVA a Pagar | B11: 65063891 | C11: 59373829
A12: Total | B12: =SUM($B$9:B11) -> 70186389 | C12: =SUM($C$9:C11) -> 80006821
A22: Sra Luisa Isabel Schaerer de Pallares | B22: Sra. Maria Celeste Pallares Viveros
A23: Presidente | B23: Vicepresidente
A31: Dr. Raul Fernando Vargas | B31: C.P. Gloria Elizabeth Flecha Benitez
A32: Sindico Titular | B32: Contador

Sheet Nota 18
A1: =Indice!C1 -> GAS CORONA S.A.E.C.A. | D1: BG
A4: NOTA 18 - PROVISIONES
B6: En miles de guaranies
A7: Provisiones | B7: =IFERROR(IF(Indice!B6="","2XX2",YEAR(Indice!B6)),"2XX2") -> 2021 | C7: =IFERROR(YEAR(Indice!B6-365),"2XX1") -> 2020
A9: Alquileres a Pagar | B9: 0 | C9: 0
A10: Servicios Basicos a Pagar | B10: 0 | C10: 0
A11: Honorarios Profesionales a Pagar | B11: 0 | C11: 0
A12: Dividendos a Pagar | B12: 10390199749 | C12: 12688178464
A13: Provisiones Varias | B13: 629537117 | C13: 96531885
A14: Provisiones Caja Chica | B14: 31694458 | C14: 29540295
A15: Provision Despachos | B15: 613158 | C15: 58027698
A16: Total | B16: =SUM($B$9:B15) -> 11052044482 | C16: =SUM($C$9:C15) -> 12872278342
A26: Sra Luisa Isabel Schaerer de Pallares | C26: Sra. Maria Celeste Pallares Viveros
A27: Presidente | C27: Vicepresidente
A35: Dr. Raul Fernando Vargas | C35: C.P. Gloria Elizabeth Flecha Benitez
A36: Sindico Titular | C36: Contador

Sheet Nota 19
A1: =Indice!C1 -> GAS CORONA S.A.E.C.A. | D1: BG
A3: NOTA 19 – OTROS PASIVOS CORRIENTES y NO CORRIENTES
A4: En miles de guaranies
A6: Corrientes | B6: =IFERROR(IF(Indice!B6="","2XX2",YEAR(Indice!B6)),"2XX2") -> 2021 | C6: =IFERROR(YEAR(Indice!B6-365),"2XX1") -> 2020 | E6: No Corrientes | F6: =IFERROR(IF(Indice!B6="","2XX2",YEAR(Indice!B6)),"2XX2") -> 2021 | G6: =IFERROR(YEAR(Indice!B6-365),"2XX1") -> 2020
A7: Retencion de IVA a pagar | B7: 0 | E7: Retencion de IVA a pagar
A8: Retencion Impuesto a la renta a Pagar | B8: 0 | C8: 0 | E8: Retencion Impuesto a la renta a Pagar
A9: Impuestos diferidos | B9: 0 | C9: 0 | E9: Impuestos diferidos
A10: Otros ingresos diferidos (detallar cuenta) | B10: 0 | C10: 0 | E10: Otros ingresos diferidos
A11: Otros Pasivos con Entidades relacionadas | B11: 0 | C11: 0 | E11: Otros Pasivos con Entidades relacionadas
A12: Previsiones para contingencias/Indemnizaciones y despidos | B12: 1713791642 | C12: 1716629332 | E12: Previsiones para contingencias/Indemnizaciones y despidos
A13: Acreedores Varios | B13: 0 | C13: 0 | E13: (nuevas cuentas a incluir)
A14: Total | B14: =SUM(B8:B13) -> 1713791642 | C14: =SUM(C8:C13) -> 1716629332 | E14: Total | F14: =SUM(F8:F13) -> 0 | G14: =SUM(G8:G13) -> 0
A20: Sra Luisa Isabel Schaerer de Pallares | B20: Sra. Maria Celeste Pallares Viveros | D20: Dr. Raul Fernando Vargas | F20: C.P. Gloria Elizabeth Flecha Benitez
A21: Presidente | B21: Vicepresidente | D21: Sindico Titular | F21: Contador

Sheet Nota 20
A4: =Indice!C1 -> GAS CORONA S.A.E.C.A. | D4: BG
A7: NOTA 20 – CAPITAL INTEGRADO
A9: Fecha | B9: =IFERROR(IF(Indice!B6="","2XX2",YEAR(Indice!B6)),"2XX2") -> 2021 | C9: =IFERROR(YEAR(Indice!B6-365),"2XX1") -> 2020
A10: Monto Capital Social | B10: 52000000000 | C10: 50000000000
A11: Monto Capital Integrado | B11: 50000000000 | C11: 49200000000
A12: Cantidad de Acciones | B12: 5000 | C12: 4920
A13: Valor Nominal de Acciones | B13: 10000000 | C13: 10000000
A14: Total | B14: =B12*B13 -> 50000000000 | C14: =+C11 -> 49200000000
A22: Sra Luisa Isabel Schaerer de Pallares | B22: Sra. Maria Celeste Pallares Viveros
A23: Presidente | B23: Vicepresidente
A31: Dr. Raul Fernando Vargas | B31: C.P. Gloria Elizabeth Flecha Benitez
A32: Sindico Titular | B32: Contador

Sheet Nota 21
A1: =Indice!C1 -> GAS CORONA S.A.E.C.A. | F1: BG
A4: NOTA 21 – RESERVAS
B6: En miles de guaranies
B7: =IFERROR(IF(Indice!B6="","2XX2",YEAR(Indice!B6)),"2XX2") -> 2021 | C7: =IFERROR(YEAR(Indice!B6-365),"2XX1") -> 2020
A8: a Reserva de revalúo | B8: 0 | C8: 0
A12: b Reserva legal | B12: 8151731798 | C12: 6931012994
A16: c Reservas estatutarias
A20: d Reservas facultativas | B20: =+SUM($B$21:B26) -> 0 | C20: =+SUM($C$21:C26) -> 0
A21: d.1. (nuevas cuentas a incluir)
A22: d.2. (nuevas cuentas a incluir)
A33: Sra Luisa Isabel Schaerer de Pallares | D33: Sra. Maria Celeste Pallares Viveros
A34: Presidente | D34: Vicepresidente
A42: Dr. Raul Fernando Vargas | D42: C.P. Gloria Elizabeth Flecha Benitez
A43: Sindico Titular | D43: Contador

Sheet Nota 22
A1: =Indice!C1 -> GAS CORONA S.A.E.C.A. | F1: BG
A3: NO APLICA
A4: NOTA 21 – DIFERENCIA TRANSITORIA POR CONVERSION
B6: En miles de guaranies
B7: =IFERROR(IF(Indice!B6="","2XX2",YEAR(Indice!B6)),"2XX2") -> 2021 | C7: =+IFERROR(YEAR(Indice!B6-365),"2XX1") -> 2020
A8: Diferencia transitoria por conversión
A16: Sra Luisa Isabel Schaerer de Pallares | D16: Sra. Maria Celeste Pallares Viveros
A17: Presidente | D17: Vicepresidente
A25: Dr. Raul Fernando Vargas | D25: C.P. Gloria Elizabeth Flecha Benitez
A26: Sindico Titular | D26: Contador

Sheet Nota 23
A4: =Indice!C1 -> GAS CORONA S.A.E.C.A. | F4: BG
A7: NOTA 23 – RESULTADOS ACUMULADOS
B9: En miles de guaranies
B10: =IFERROR(IF(Indice!B6="","2XX2",YEAR(Indice!B6)),"2XX2") -> 2021 | C10: =+IFERROR(YEAR(Indice!B6-365),"2XX1") -> 2020
A11: Resultado de ejercicios anteriores | B11: 0 | C11: 0
A12: Resultado del ejercicio actual | B12: 3016225545 | C12: 13652924968
A13: Totales | B13: =SUM($B$11:B12) -> 3016225545 | C13: =SUM($C$11:C12) -> 13652924968
A20: Sra Luisa Isabel Schaerer de Pallares | C20: Sra. Maria Celeste Pallares Viveros
A21: Presidente | D21: Vicepresidente
A29: Dr. Raul Fernando Vargas | C29: C.P. Gloria Elizabeth Flecha Benitez
A30: Sindico Titular | C30: Contador

Sheet Nota 24
A1: =Indice!C1 -> GAS CORONA S.A.E.C.A. | F1: BG
A3: NO APLICA
A4: NOTA 24 – INTERES MINORITARIO
B6: En miles de guaranies
B7: =IFERROR(IF(Indice!B6="","2XX2",YEAR(Indice!B6)),"2XX2") -> 2021 | C7: =+IFERROR(YEAR(Indice!B6-365),"2XX1") -> 2020
A8: Interes Minoritario
A16: Sra Luisa Isabel Schaerer de Pallares | C16: Sra. Maria Celeste Pallares Viveros
A17: Presidente | C17: Vicepresidente
A25: Dr. Raul Fernando Vargas | C25: C.P. Gloria Elizabeth Flecha Benitez
A26: Sindico Titular | C26: Contador

Sheet Nota 25
A1: =Indice!C1 -> GAS CORONA S.A.E.C.A. | E1: ER
A5: NOTA 25 – VENTAS
B8: En miles de guaranies
B9: =IFERROR(IF(Indice!B6="","2XX2",YEAR(Indice!B6)),"2XX2") -> 2021 | C9: =+IFERROR(YEAR(Indice!B6-365),"2XX1") -> 2020
A10: Ventas
A11: Ventas linea de Gas Licuadot de Petroleo
A12: Local
A13: Contado | B13: 25735520226 | C13: 24621231375
A14: Crédito | B14: 13750283354 | C14: 15207075700
A15: Exterior
A16: Contado
A17: Crédito
A18: Ventas linea de Combustibles y Derivados
A19: Local
A20: Contado | B20: 2626654788 | C20: 3780491650
A21: Crédito | B21: 88982503980 | C21: 84504199295
A22: Exterior
A23: Contado
A24: Crédito
A25: (nuevas lineas de negocio a incluir)
A26: Total | B26: =SUM($B$11:B24) -> 131094962348 | C26: =SUM($C$11:C24) -> 128112998020
A33: Sra Luisa Isabel Schaerer de Pallares | C33: Sra. Maria Celeste Pallares Viveros
A34: Presidente | C34: Vicepresidente
A42: Dr. Raul Fernando Vargas | C42: C.P. Gloria Elizabeth Flecha Benitez
A43: Sindico Titular | C43: Contador

Sheet Nota 26
A1: =Indice!C1 -> GAS CORONA S.A.E.C.A. | E1: ER
A5: NOTA 26 - COSTO DE VENTAS
B8: Miles de guaraníes
A9: Costo de ventas | B9: =IFERROR(IF(Indice!B6="","2XX2",YEAR(Indice!B6)),"2XX2") -> 2021 | C9: =+IFERROR(YEAR(Indice!B6-365),"2XX1") -> 2020
A10: GAS LICUADO DE PETROLEO
A11: Existencia inicial del inventario | B11: 5681338324 | C11: 3586346681
A12: + Compra de bienes y servicios | B12: 22806604309 | C12: 13994868185
A13: + Costo de producción | B13: 0 | C13: 0
A14: - Existencia final de inventario | B14: -9024943175 | C14: -3801088698
A15: COMBUSTIBLES Y DERIVADOS
A16: Existencia inicial del inventario | B16: 723607621 | C16: 808577670
A17: + Compra de bienes y servicios | B17: 86462652768 | C17: 78504736162
A18: + Costo de producción
A19: - Existencia final de inventario | B19: -813223703 | C19: -784143161
A20: (nuevas lineas de negocio a incluir)
A21: Total costo de ventas | B21: =-SUM($B$10:B20) -> -105836036144 | C21: =-SUM($C$10:C20) -> -92309296839
A28: Sra Luisa Isabel Schaerer de Pallares | C28: Sra. Maria Celeste Pallares Viveros
A29: Presidente | C29: Vicepresidente
A37: Dr. Raul Fernando Vargas | C37: C.P. Gloria Elizabeth Flecha Benitez
A38: Sindico Titular | C38: Contador

Sheet Nota 27
A1: =Indice!C1 -> GAS CORONA S.A.E.C.A. | G1: ER
A4: NOTA 27 - GASTOS
A5: El rubro está compuesto de la siguiente forma:
B6: =IFERROR(IF(Indice!B6="","2XX2",YEAR(Indice!B6)),"2XX2") -> 2021 | E6: =+IFERROR(YEAR(Indice!B6-365),"2XX1") -> 2020
B7: Gastos de Ventas | C7: Gastos Administrativos | D7: Total | E7: Gastos de Ventas | F7: Gastos Administrativos | G7: Total
A8: Movilidad y viáticos | B8: =34000+34841051+49505805+10381820+122881102+7502055+691835993 -> 916981826 | C8: =5061538+41934816 -> 46996354 | D8: =+C8+B8 -> 963978180 | E8: =702099364+35933819+42716373+119636243+6689547+455236+173636367+6721033+52261498 -> 1140149480 | F8: =29461421+4099098+4059996 -> 37620515 | G8: =+F8+E8 -> 1177769995
A9: Gastos de alquiler | B9: =78000000+83930736 -> 161930736 | D9: =+C9+B9 -> 161930736 | E9: =119774990+78000000 -> 197774990 | F9: 0 | G9: =+F9+E9 -> 197774990
A10: Computación y redes | C10: =51616351+200000+1227534+881217 -> 53925102 | D10: 53925102 | E10: 0 | F10: =16944075+16310546+7365204 -> 40619825 | G10: 40619825
A11: Gastos por servicios basicos | B11: =96536680+10676986+13537837+7888788+938980+6226184+2415981 -> 138221436 | C11: 228921232 | D11: 367142668 | E11: =110215414+13927636+9362108+8023414+193636+6392772+1375781 -> 149490761 | F11: 237145663 | G11: 386636424
A12: Honorarios profesionales y asesoramiento | C12: =37677863+24090909+93636087+83507415+18181818+15000000 -> 272094092 | D12: 272094092 | E12: 0 | F12: =22898062+7454546+21818182+83326000+18181818 -> 153678608 | G12: 153678608
A13: Impuestos y tasas | B13: 40893903 | C13: 1481152204 | D13: 1522046107 | E13: 41527739 | F13: 1324264702 | G13: 1365792441
A14: Gastos de reparación y mantenimiento | B14: =303622544+783942667+227421096+444206160+19427874+11618180+4545455+502157+48539118+10175382+78750242+11576555+354188+500000+681818+10000000+289410+2966383+2959091+55319+17500000+200000 -> 1979833639 | C14: =85131638+500000+1992535+1778273 -> 89402446 | D14: 2069236085 | E14: =219538277+300435748+424530683+106324166+26060515+27273+2982577+42481614+428180+77273+31876+1898188+890909+868239+478409+1407273+9944964+213920833 -> 1352326997 | F14: =82724094 -> 82724094 | G14: 1435051091
A15: Gastos del personal y capacitación | C15: =10864318 -> 10864318 | D15: 10864318 | F15: =12619150 -> 12619150 | G15: 12619150
A16: Seguros pagados | C16: 299087327 | D16: 299087327 | E16: 0 | F16: 282600879 | G16: 282600879
A17: Otros gastos de operación | B17: 260170957 | D17: 260170957 | E17: 106164135 | F17: 0 | G17: 106164135
A18: Remuneraciones de administradores, directores, síndicos y consejo de vigilancia | C18: =1440909087 -> 1440909087 | D18: 1440909087 | E18: 0 | F18: =585000000+701000000 -> 1286000000 | G18: 1286000000
A19: Sueldos y Jornales | B19: =1040605940+392776734+1784132827+979665245+125153439+83553789+67350051+33534297-B20 -> 3896823522 | C19: =2306302547-C20 -> 2034069357 | D19: 5930892879 | E19: =(1119795092+359407305+1705196183+923549464+131885875+78422427+70452466+34547082)-E20 -> 3846935958 | F19: =2401896231-F20 -> 2113735947 | G19: 5960671905
A20: Contribuciones Sociales | B20: =139940585+51825497+250178994+128537542+16303102+10490387+8361023+4311670 -> 609948800 | C20: 272233190 | D20: 882181990 | E20: =140517485+45685370+234796001+115365243+16775473+9862277+8867719+4450368 -> 576319936 | F20: 288160284 | G20: 864480220
A21: Gastos de Publicidad y Propaganda | B21: =9705455+1500000+1225454+2018182+54545+1154547+436364 -> 16094547 | C21: =234895310+346364+1332000+55500909 -> 292074583 | D21: 308169130 | E21: =3431819+2139042+1158640+7849542+7108641 -> 21687684 | F21: =182849815+3273505+636364 -> 186759684 | G21: 208447368
A22: Intereses, multas y recargos impositivos | D22: 0 | E22: 0 | F22: 0 | G22: 0
A23: Intereses a bancos e instituciones financieras | D23: 0 | E23: 0 | F23: 0 | G23: 0
A24: Depreciación bienes de uso | B24: =943005282+1107091710+434701704 -> 2484798696 | C24: =824288952-434701704 -> 389587248 | D24: 2874385944 | E24: =990200538+1336208982+874748106 -> 3201157626 | F24: =1308462452-874748106 -> 433714346 | G24: 3634871972
A25: Amortizaciones Varios | B25: 2392224762 | D25: 2392224762 | E25: =3239969948 -> 3239969948 | F25: 0 | G25: 3239969948
A26: Amortización activos intangibles | D26: 0 | E26: 0 | F26: 0 | G26: 0
A27: Previsiones | D27: 0 | E27: 0 | F27: 0 | G27: 0
A28: Sumistros e Insumos | B28: =155406012+5033255+8343637+4744+9386677+2186025+6320101+11406654+2419874+1132225+1469835+911402+891416+213648+209376+220673+43773+2673185 -> 208272512 | C28: =28107497+26192726+376445+77836+354545+3246280+5536364+584213+853545 -> 65329451 | D28: 273601963 | E28: =144632344+5298832+10309093+62986343+560142+1606961+6199380+23480+53444537+19173625+1730114+940504+905627+479514+365580+203493+11935+220573+245452+286516 -> 309624045 | F28: =23883574+11581818+3870+666607+137557+1831600+900000+68182+1448718+1332000+3379464 -> 45233390 | G28: 354857435
A29: Seguridad | B29: =62701800+31805445+62701800+32259991+32259991 -> 221729027 | C29: =476769674+90084858 -> 566854532 | D29: 788583559 | E29: =52706045+31578173+62701800+26580295+31805445 -> 205371758 | F29: =470555413+90085145 -> 560640558 | G29: 766012316
A30: Seguridad Ocupacional | B30: =31718491+66056717+355453+2739508+12633858+717276+2001816+1890823+6525570+1976072+167330+4183416+1890824+78411+10724526+1890824+10360590+78411+2029092+4722481 -> 162741489 | C30: =25242670+7500001 -> 32742671 | D30: 195484160 | E30: =21518392+68809518+2067406+1156752+637535+252339+2522446+282769+637534+152727+637534+2971670 -> 101646622 | F30: =12830159+844479 -> 13674638 | G30: 115321260
A31: Seguridad Sanitaria | B31: 136403637 | C31: 33458606 | D31: 169862243 | E31: 0 | F31: 56669303 | G31: 56669303
A32: Gastos Varios | B32: =1200000+508506+49091+1727272+686364+681818+354545+6895351 -> 12102947 | C32: =450909+792550+122727+44266722+14781819+147734+3818182+1636364+23576033+990600 -> 90583640 | D32: 102686587 | E32: =750000+9553677+3090684+112987+28150001+164091+46587620+12142091+256182+2200000+1363636+1763636+1156364+2443871+1363636 -> 111098476 | F32: =614545+4871818+3272727+43571863+590908+29499819+1359957+6641818+12000000+12127959+903494+2727272+869343 -> 119051523 | G32: 230149999
A33: Servicios Varios | B33: =2277273+50340910+48035918+1272727+95985229+233454540 -> 431366597 | C33: =79750000+65711317+2469998+4181818+135900000+45492216+4765210+20234899+3636364 -> 362141822 | D33: 793508419 | E33: =2001816+335769817+31300001+12633858+4183416+10724526+10360590+2029092 -> 409003116 | F33: =86875000+41956137+115090910+26806725+753000+22037400 -> 293519172 | G33: 702522288
A34: Total | B34: =SUM($B$8:B33) -> 14070539033 | C34: =SUM($C$8:C33) -> 8062427262 | D34: =SUM($D$8:D33) -> 22132966295 | E34: =+SUM($E$8:E33) -> 15010249271 | F34: =+SUM($F$8:F33) -> 7568432281 | G34: =SUM($G$8:G33) -> 22578681552
A37: Sra Luisa Isabel Schaerer de Pallares | B37: Sra. Maria Celeste Pallares Viveros | D37: Dr. Raul Fernando Vargas | F37: C.P. Gloria Elizabeth Flecha Benitez
A38: Presidente | B38: Vicepresidente | D38: Sindico Titular | F38: Contador

Sheet Nota 28
A1: =Indice!C1 -> GAS CORONA S.A.E.C.A. | E1: ER
A4: Nota 28 - Otros Ingresos y gastos operativos
A6: Miles de guaraníes
A8: Otros ingresos | B8: =IFERROR(IF(Indice!B6="","2XX2",YEAR(Indice!B6)),"2XX2") -> 2021 | C8: =+IFERROR(YEAR(Indice!B6-365),"2XX1") -> 2020 | E8: Otros gastos | F8: =IFERROR(IF(Indice!B6="","2XX2",YEAR(Indice!B6)),"2XX2") -> 2021 | G8: =+IFERROR(YEAR(Indice!B6-365),"2XX1") -> 2020
A9: Ventas de Envases | B9: 224760000 | C9: 183560000
A10: Ventas Repuestos | B10: 22523568 | C10: 36803134
A11: Venta Materiales | B11: 69372000 | C11: 71132400
A12: Venta Servicios | B12: =73000+34274892 -> 34347892 | C12: =146000+32593858 -> 32739858
A13: Ingresos Varios | B13: =66363636+14838963+23458+391176577 -> 472402634 | C13: =4913496+3628811-576993+101950+389118397 -> 397185661
A15: Total | B15: =SUM($B$9:B14) -> 823406094 | C15: =SUM($C$9:C14) -> 721421053 | E15: Total | F15: =SUM($F$9:F14) -> 0 | G15: =SUM($G$9:G14) -> 0
A22: Sra Luisa Isabel Schaerer de Pallares | B22: Sra. Maria Celeste Pallares Viveros | E22: Dr. Raul Fernando Vargas | H22: C.P. Gloria Elizabeth Flecha Benitez
A23: Presidente | B23: Vicepresidente | E23: Sindico Titular | H23: Contador

Sheet Nota 29
A1: =Indice!C1 -> GAS CORONA S.A.E.C.A. | E1: ER
A5: NOTA 29 - INGRESOS Y GASTOS FINANCIEROS NETOS
A6: Miles de guaraníes
A8: Ingresos Financieros netos | B8: =IFERROR(IF(Indice!B6="","2XX2",YEAR(Indice!B6)),"2XX2") -> 2021 | C8: =+IFERROR(YEAR(Indice!B6-365),"2XX1") -> 2020 | E8: Gastos Financieros netos | F8: =IFERROR(IF(Indice!B6="","2XX2",YEAR(Indice!B6)),"2XX2") -> 2021 | G8: =+IFERROR(YEAR(Indice!B6-365),"2XX1") -> 2020
A9: Intereses En caja de Ahorro | B9: 0 | C9: 0 | E9: Comosion Descuentos Cheques | F9: 2650000 | G9: 17440000
A10: Diferencia de Cambio | B10: =77889389+390131174 -> 468020563 | C10: =58336208+562332758 -> 620668966 | E10: Gastos Financieros | F10: =31893242+120699 -> 32013941 | G10: =25236426+125033 -> 25361459
B11: 0 | C11: 0 | E11: Intereses Pagados | F11: 213481015 | G11: 406942141
B12: 0 | C12: 0 | E12: Diferencia de Cambio | F12: =323769303+63096078 -> 386865381 | G12: =231772048+54408755 -> 286180803
B13: 0 | C13: 0 | E13: Intereses Bonos | F13: 766150684 | G13: 178260277
A14: Total ingresos financieros | B14: =SUM($B9:B13) -> 468020563 | C14: =SUM($C9:C13) -> 620668966 | E14: Total gastos financieros | F14: =SUM($F9:F13) -> 1401161021 | G14: =SUM($G9:G13) -> 914184680
A21: Sra Luisa Isabel Schaerer de Pallares | B21: Sra. Maria Celeste Pallares Viveros | E21: Dr. Raul Fernando Vargas | F21: C.P. Gloria Elizabeth Flecha Benitez
A22: Presidente | B22: Vicepresidente | E22: Sindico Titular | F22: Contador

Sheet Nota 30
A1: =Indice!C1 -> GAS CORONA S.A.E.C.A. | E1: ER
A3: NO APLICA
A4: Nota 34 - Resultado de inversiones en asociadas
A5: Miles de guaraníes
A8: Resultado de inversiones en asociadas | B8: =IFERROR(IF(Indice!B6="","2XX2",YEAR(Indice!B6)),"2XX2") -> 2021 | C8: =+IFERROR(YEAR(Indice!B6-365),"2XX1") -> 2020
A9: (Detallar cuenta)
A13: Total | B13: =SUM($B9:B12) -> 0 | C13: =SUM($C9:C12) -> 0
A18: Sra Luisa Isabel Schaerer de Pallares | C18: Sra. Maria Celeste Pallares Viveros
A19: Presidente | C19: Vicepresidente
A27: Dr. Raul Fernando Vargas | C27: C.P. Gloria Elizabeth Flecha Benitez
A28: Sindico Titular | C28: Contador

Sheet Nota 31
A1: =Indice!C1 -> GAS CORONA S.A.E.C.A. | E1: ER
A3: NO APLICA
A4: Nota 31 - Resultado participación minoritaria
A5: Miles de guaraníes
A8: Resultado participación minoritaria | B8: =IFERROR(IF(Indice!B6="","2XX2",YEAR(Indice!B6)),"2XX2") -> 2021 | C8: =+IFERROR(YEAR(Indice!B6-365),"2XX1") -> 2020
A12: Total | B12: =SUM($B9:B11) -> 0 | C12: =SUM($C9:C11) -> 0
A17: Sra Luisa Isabel Schaerer de Pallares | C17: Sra. Maria Celeste Pallares Viveros
A18: Presidente | C18: Vicepresidente
A26: Dr. Raul Fernando Vargas | C26: C.P. Gloria Elizabeth Flecha Benitez
A27: Sindico Titular | C27: Contador

Sheet Nota 32
A1: =Indice!C1 -> GAS CORONA S.A.E.C.A. | E1: ER
A3: NO APLICA
A4: Nota 32 - IMPUESTO A LA RENTA
A5: En miles de guaraníes
B7: =IFERROR(IF(Indice!B6="","2XX2",YEAR(Indice!B6)),"2XX2") -> 2021 | C7: =+IFERROR(YEAR(Indice!B6-365),"2XX1") -> 2020
A8: Impuesto a la renta
A14: Total | B14: =SUM($B8:B13) -> 0 | C14: =SUM($C8:C13) -> 0
A21: Sra Luisa Isabel Schaerer de Pallares | C21: Sra. Maria Celeste Pallares Viveros
A22: Presidente | C22: Vicepresidente
A30: Dr. Raul Fernando Vargas | C30: C.P. Gloria Elizabeth Flecha Benitez
A31: Sindico Titular | C31: Contador

Sheet Nota 33
A1: =Indice!C1 -> GAS CORONA S.A.E.C.A. | E1: ER
A3: NO APLICA
A4: Nota 33 - Resultado extraordinario neto de impuesto a la renta
A5: En miles de guaraníes
B7: =IFERROR(IF(Indice!B6="","2XX2",YEAR(Indice!B6)),"2XX2") -> 2021 | C7: =+IFERROR(YEAR(Indice!B6-365),"2XX1") -> 2020
A8: Conceptos
A9: (Detallar)
A15: Total | B15: =SUM($B8:B14) -> 0 | C15: =SUM($C8:C14) -> 0
A21: Sra Luisa Isabel Schaerer de Pallares | C21: Sra. Maria Celeste Pallares Viveros
A22: Presidente | C22: Vicepresidente
A30: Dr. Raul Fernando Vargas | C30: C.P. Gloria Elizabeth Flecha Benitez
A31: Sindico Titular | C31: Contador

Sheet Nota 34
A1: =Indice!C1 -> GAS CORONA S.A.E.C.A. | E1: ER
A3: NO APLICA
A4: Nota 34 - Resultado sobre actividades discontinuadas neto de impuesto a la renta
A5: En miles de guaraníes
A7: Resultado sobre actividades discontinuadas neto de impuesto a la renta | B7: =IFERROR(IF(Indice!B6="","2XX2",YEAR(Indice!B6)),"2XX2") -> 2021 | C7: =+IFERROR(YEAR(Indice!B6-365),"2XX1") -> 2020
A9: (nueva cuenta a incluir)
A10: Subtotal
A11: - Impuesto a la renta
A12: Total | B12: =SUM($B8:B11) -> 0 | C12: =SUM($C8:C11) -> 0
A17: Sra Luisa Isabel Schaerer de Pallares | C17: Sra. Maria Celeste Pallares Viveros
A18: Presidente | C18: Vicepresidente
A26: Dr. Raul Fernando Vargas | C26: C.P. Gloria Elizabeth Flecha Benitez
A27: Sindico Titular | C27: Contador

Sheet Nota 35
A1: =Indice!C1 -> GAS CORONA S.A.E.C.A. | E1: ER
A4: NOTA 35- UTILIDAD (PÉRDIDA) NETA DEL AÑO Y POR ACCION ORDINARIA
A5: La Sociedad calcula la utilidad (pérdida) neta por acción sobre la base de la utilidad (pérdida) del año y … acciones ordinarias (aclarar las características de las acciones) de valor nominal G/ …cada una con derecho a … voto por acción (aclarar el derecho de voto que tiene cada tipo de acción).
B7: =IFERROR(IF(Indice!B6="","2XX2",YEAR(Indice!B6)),"2XX2") -> 2021 | C7: =+IFERROR(YEAR(Indice!B6-365),"2XX1") -> 2020
A8: Cantidad de Acciones Ordinarias en Circulación | B8: 5000 | C8: 4920
A9: Utilidad Neta | B9: 3016225545 | C9: 13652924968
A10: Utilidad Neta por Acción Ordinaria | B10: =IFERROR(B9/B8,0) -> 603245.109 | C10: =IFERROR(C9/C8,0) -> 2774984.75
A17: Sra Luisa Isabel Schaerer de Pallares | B17: Sra. Maria Celeste Pallares Viveros | D17: Dr. Raul Fernando Vargas | F17: C.P. Gloria Elizabeth Flecha Benitez
A18: Presidente | B18: Vicepresidente | D18: Sindico Titular | F18: Contador

Sheet Nota 36
A1: =Indice!C1 -> GAS CORONA S.A.E.C.A. | E1: Indice
A3: NO APLICA
A4: NOTA 36 - ACTIVOS GRAVADOS
A6: Los siguientes bienes de propiedad de la Sociedad han sido hipotecados y prendados en garantía de obligaciones financieras.
A8: =IFERROR("Al "&DAY(Indice!B6)&" de "&VLOOKUP(MONTH(Indice!B6),Indice!S:T,2,0)&" de "&YEAR(Indice!B6-365),"Al dia... de mes… de año 2XX1…") -> Al 30 de Junio de 2020
A9: Tipo de Activo | B9: Datos del activo gravado | C9: Tipo de garantía | D9: Importe (indicar moneda) | E9: A favor de
A15: =IFERROR("Al "&DAY(Indice!B6)&" de "&VLOOKUP(MONTH(Indice!B6),Indice!S:T,2,0)&" de "&YEAR(Indice!B6-1),"Al dia... de mes… de año 2XX2…") -> Al 30 de Junio de 2021
A16: Tipo de Activo | B16: Datos del activo gravado | C16: Tipo de garantía | D16: Importe (indicar moneda) | E16: A favor de
A26: Sra Luisa Isabel Schaerer de Pallares | B26: Sra. Maria Celeste Pallares Viveros | D26: Dr. Raul Fernando Vargas | F26: C.P. Gloria Elizabeth Flecha Benitez
A27: Presidente | B27: Vicepresidente | D27: Sindico Titular | F27: Contador

Sheet Nota 37
A1: =Indice!C1 -> GAS CORONA S.A.E.C.A. | E1: Indice
A3: NO APLICA
A4: NOTA 37 - CONTINGENCIAS Y COMPROMISOS
A6: =IFERROR("Al "&DAY(Indice!B6)&" de "&VLOOKUP(MONTH(Indice!B6),Indice!S:T,2,0)&" de "&YEAR(Indice!B6-1)&" no existen situaciones contingentes, ni reclamos que pudieran resultar en la generación de obligaciones para la Sociedad adicionales a las que se presentan en estos estados financieros.","Al … de …………... 20X2 no existen situaciones contingentes, ni reclamos que pudieran resultar en la generación de obligaciones para la Sociedad adicionales a las que se presentan en estos estados financieros.") -> Al 30 de Junio de 2021 no existen situaciones contingentes, ni reclamos que pudieran resultar en la generación de obligaciones para la Sociedad adicionales a las que se presentan en estos estados financieros.
A14: Sra Luisa Isabel Schaerer de Pallares | B14: Sra. Maria Celeste Pallares Viveros | D14: Dr. Raul Fernando Vargas | F14: C.P. Gloria Elizabeth Flecha Benitez
A15: Presidente | B15: Vicepresidente | D15: Sindico Titular | F15: Contador

Sheet Nota 38
A1: =Indice!C1 -> GAS CORONA S.A.E.C.A. | D1: Índice
A3: NO APLICA
A4: NOTA 38 - IMPUESTO DIFERIDO
A5: En miles de guaraníes
A6: Al … de …........... 20X2 la Sociedad constituyó una provisión para impuesto a la renta de Guaraníes …... (Al … de …...............20X1: Guaraníes …....) / (La Sociedad no ha constituido provisión para impuesto a la renta, debido a que a esa fecha la misma generó renta imponible que fue compensada con quebrantos impositivos acumulados a esa fecha).
A7: La Sociedad contabiliza el impuesto a la renta por el método de lo diferido, método del pasivo. El mencionado método establece la determinación de activos o pasivos impositivos diferidos netos basados en las diferencias temporales y temporarias, con cargo a la línea Impuesto a la renta del Estado de resultados.
A9: El siguiente cuadro detalla las diferencias temporales a la tasa del impuesto a los efectos de determinación del impuesto diferido:
B11: =IFERROR(IF(Indice!B6="","2XX2",YEAR(Indice!B6)),"2XX2") -> 2021 | C11: =+IFERROR(YEAR(Indice!B6-365),"2XX1") -> 2020
A12: Activos y pasivos impositivos diferidos:
A13: Caja y Bancos
A14: Inversiones
A15: Previsión para deudores incobrables
A16: Bienes de uso
A17: Activos intangibles
A18: Previsión del pasivo
A19: Deudas comerciales y bancarias
A20: Bienes de cambio
A21: Sub - total
A22: Previsión para impuestos diferidos netos
A23: Total activo/pasivo impositivo diferido neto antes de quebrantos
A24: Quebranto impositivo
A25: Total
A29: Sra Luisa Isabel Schaerer de Pallares | B29: Sra. Maria Celeste Pallares Viveros | D29: Dr. Raul Fernando Vargas | F29: C.P. Gloria Elizabeth Flecha Benitez
A30: Presidente | B30: Vicepresidente | D30: Sindico Titular | F30: Contador

Sheet Nota 39
A1: =Indice!C1 -> GAS CORONA S.A.E.C.A. | E1: Indice
A5: NOTA 39 - HECHOS POSTERIORES
A9: Entre la fecha de cierre del ejercicio y la fecha de preparación de estos estados financieros, no han ocurrido hechos significativos de carácter financiero o de otra índole que afecten la situación patrimonial o financiera o los resultados de la Sociedad al 30 de JUNIO de 2021.
A15: Sra Luisa Isabel Schaerer de Pallares | B15: Sra. Maria Celeste Pallares Viveros | D15: Dr. Raul Fernando Vargas | F15: C.P. Gloria Elizabeth Flecha Benitez
A16: Presidente | B16: Vicepresidente | D16: Sindico Titular | F16: Contador

Sheet Nota 40
A1: =Indice!C1 -> GAS CORONA S.A.E.C.A. | C1: Indice
A5: NOTA 40 - SALDOS Y TRANSACCIONES CON PARTES RELACIONADAS
A6: Miles de guaraníes
B10: =IFERROR(IF(Indice!B6="","2XX2",YEAR(Indice!B6)),"2XX2") -> 2021 | C10: =+IFERROR(YEAR(Indice!B6-365),"2XX1") -> 2020
A11: ACTIVO
A12: Inversiones temporales
A13: Cuentas a cobrar comerciales | B13: 5079098722 | C13: 4313400393
A14: Otros créditos
A15: Total activo | B15: =B13 -> 5079098722 | C15: =C13 -> 4313400393
A16: PASIVO
A17: Cuentas por pagar comerciales | B17: 1279200 | C17: =317100+135900 -> 453000
A18: Préstamos a corto plazo
A19: Provisiones
A20: Préstamos a largo plazo
A21: Otros pasivos
A22: Total pasivo | B22: =B17 -> 1279200 | C22: =C17 -> 453000
B26: =IFERROR(IF(Indice!B6="","2XX2",YEAR(Indice!B6)),"2XX2") -> 2021 | C26: =+IFERROR(YEAR(Indice!B6-365),"2XX1") -> 2020
A27: Costo de ventas | B27: 0 | C27: 0
A28: Compras | B28: 0 | C28: 0
B29: 0 | C29: 0
A30: Gastos administrativos | B30: 0 | C30: 0
A31: Honorarios por servicios | B31: 0 | C31: 0
A32: Otros | B32: 0 | C32: 0
A33: Gastos financieros | B33: 0 | C33: 0
A34: Intereses pagados por préstamos | B34: 0 | C34: 0
A40: Sra Luisa Isabel Schaerer de Pallares | C40: Sra. Maria Celeste Pallares Viveros
A41: Presidente | C41: Vicepresidente
A49: Dr. Raul Fernando Vargas | C49: C.P. Gloria Elizabeth Flecha Benitez
A50: Sindico Titular | C50: Contador

Sheet Base de Monedas
A1: PYG | B1: Guaraní | C1: Índice
A2: USD | B2: Dólar estadounidense
A3: EUR | B3: Euro
A4: AED | B4: Dírham de los Emiratos Árabes Unidos
A5: AFN | B5: Afgani
A6: ALL | B6: Lek
A7: AMD | B7: Dram armenio
A8: ANG | B8: Florín antillano neerlandés
A9: AOA | B9: Kwanza
A10: ARS | B10: Peso argentino
A11: AUD | B11: Dólar australiano
A12: AWG | B12: Florín arubeño
A13: AZN | B13: Manat azerbaiyano
A14: BAM | B14: Marco convertible
A15: BBD | B15: Dólar de Barbados
A16: BDT | B16: Taka
A17: BGN | B17: Lev búlgaro
A18: BHD | B18: Dinar bareiní
A19: BIF | B19: Franco de Burundi
A20: BMD | B20: Dólar bermudeño
A21: BND | B21: Dólar de Brunéi
A22: BOB | B22: Boliviano
A23: BOV | B23: MVDOL
A24: BRL | B24: Real brasileño
A25: BSD | B25: Dólar bahameño
A26: BTN | B26: Ngultrum
A27: BWP | B27: Pula
A28: BYN | B28: Rublo bielorruso
A29: BZD | B29: Dólar beliceño
A30: CAD | B30: Dólar canadiense
A31: CDF | B31: Franco congoleño
A32: CHE | B32: Euro WIR
A33: CHF | B33: Franco suizo
A34: CHW | B34: Franco WIR
A35: CLF | B35: Unidad de fomento
A36: CLP | B36: Peso chileno
A37: CNY | B37: Yuan chino
A38: COP | B38: Peso colombiano
A39: COU | B39: Unidad de valor real
A40: CRC | B40: Colón costarricense
A41: CUC | B41: Peso convertible
A42: CUP | B42: Peso cubano
A43: CVE | B43: Escudo caboverdiano
A44: CZK | B44: Corona checa
A45: DJF | B45: Franco yibutiano
A46: DKK | B46: Corona danesa
A47: DOP | B47: Peso dominicano
A48: DZD | B48: Dinar argelino
A49: EGP | B49: Libra egipcia
A50: ERN | B50: Nakfa
A51: ETB | B51: Birr etíope
A52: FJD | B52: Dólar fiyiano
A53: FKP | B53: Libra malvinense
A54: GBP | B54: Libra esterlina
A55: GEL | B55: Lari
A56: GHS | B56: Cedi ghanés
A57: GIP | B57: Libra de Gibraltar
A58: GMD | B58: Dalasi
A59: GNF | B59: Franco guineano
A60: GTQ | B60: Quetzal
A61: GYD | B61: Dólar guyanés
A62: HKD | B62: Dólar de Hong Kong
A63: HNL | B63: Lempira
A64: HRK | B64: Kuna
A65: HTG | B65: Gourde
A66: HUF | B66: Forinto
A67: IDR | B67: Rupia indonesia
A68: ILS | B68: Nuevo shéquel israelí
A69: INR | B69: Rupia india
A70: IQD | B70: Dinar iraquí
A71: IRR | B71: Rial iraní
A72: ISK | B72: Corona islandesa
A73: JMD | B73: Dólar jamaiquino
A74: JOD | B74: Dinar jordano
A75: JPY | B75: Yen
A76: KES | B76: Chelín keniano
A77: KGS | B77: Som
A78: KHR | B78: Riel
A79: KMF | B79: Franco comorense
A80: KPW | B80: Won norcoreano
A81: KRW | B81: Won
A82: KWD | B82: Dinar kuwaití
A83: KYD | B83: Dólar de las Islas Caimán
A84: KZT | B84: Tenge
A85: LAK | B85: Kip
A86: LBP | B86: Libra libanesa
A87: LKR | B87: Rupia de Sri Lanka
A88: LRD | B88: Dólar liberiano
A89: LSL | B89: Loti
A90: LYD | B90: Dinar libio
A91: MAD | B91: Dírham marroquí
A92: MDL | B92: Leu moldavo
A93: MGA | B93: Ariary malgache
A94: MKD | B94: Denar
A95: MMK | B95: Kyat
A96: MNT | B96: Tugrik
A97: MOP | B97: Pataca
A98: MRU | B98: Uguiya
A99: MUR | B99: Rupia de Mauricio
A100: MVR | B100: Rufiyaa
A101: MWK | B101: Kwacha
A102: MXN | B102: Peso mexicano
A103: MXV | B103: Unidad de Inversión (UDI) mexicana
A104: MYR | B104: Ringgit malayo
A105: MZN | B105: Metical mozambiqueño
A106: NAD | B106: Dólar namibio
A107: NGN | B107: Naira
A108: NIO | B108: Córdoba
A109: NOK | B109: Corona noruega
A110: NPR | B110: Rupia nepalí
A111: NZD | B111: Dólar neozelandés
A112: OMR | B112: Rial omaní
A113: PAB | B113: Balboa
A114: PEN | B114: Sol
A115: PGK | B115: Kina
A116: PHP | B116: Peso filipino
A117: PKR | B117: Rupia pakistaní
A118: PLN | B118: Złoty
A119: QAR | B119: Riyal qatarí
A120: RON | B120: Leu rumano
A121: RSD | B121: Dinar serbio
A122: RUB | B122: Rublo ruso
A123: RWF | B123: Franco ruandés
A124: SAR | B124: Riyal saudí
A125: SBD | B125: Dólar de las Islas Salomón
A126: SCR | B126: Rupia seychelense
A127: SDG | B127: Dinar sudanés
A128: SEK | B128: Corona sueca
A129: SGD | B129: Dólar de Singapur
A130: SHP | B130: Libra de Santa Elena
A131: SLL | B131: Leone
A132: SOS | B132: Chelín somalí
A133: SRD | B133: Dólar surinamés
A134: SSP | B134: Libra sursudanesa
A135: STN | B135: Dobra
A136: SVC | B136: Colon Salvadoreño
A137: SYP | B137: Libra siria
A138: SZL | B138: Lilangeni
A139: THB | B139: Baht
A140: TJS | B140: Somoni tayiko
A141: TMT | B141: Manat turcomano
A142: TND | B142: Dinar tunecino
A143: TOP | B143: Paʻanga
A144: TRY | B144: Lira turca
A145: TTD | B145: Dólar de Trinidad y Tobago
A146: TWD | B146: Nuevo dólar taiwanés
A147: TZS | B147: Chelín tanzano
A148: UAH | B148: Grivna
A149: UGX | B149: Chelín ugandés
A150: USN | B150: Dólar estadounidense (Siguiente día)
A151: UYI | B151: Peso en Unidades Indexadas (Uruguay)
A152: UYU | B152: Peso uruguayo
A153: UYW | B153: Unidad Previsional
A154: UZS | B154: Som uzbeko
A155: VES7​ | B155: Bolívar soberano
A156: VND | B156: Dong vietnamita
A157: VUV | B157: Vatu
A158: WST | B158: Tala
A159: XAF | B159: Franco CFA de África Central
A160: XAG | B160: Plata (una onza troy)
A161: XAU | B161: Oro (una onza troy)
A162: XBA | B162: Unidad compuesta europea (EURCO) (Unidad del mercados de bonos)
A163: XBB | B163: Unidad Monetaria europea (E.M.U.-6) (Unidad del mercado de bonos)
A164: XBC | B164: Unidad europea de cuenta 9 (E.U.A.-9) (Unidad del mercado de bonos)
A165: XBD | B165: Unidad europea de cuenta 17 (E.U.A.-17) (Unidad del mercado de bonos)
A166: XCD | B166: Dólar del Caribe Oriental
A167: XDR | B167: Derechos especiales de giro
A168: XOF | B168: Franco CFA de África Occidental
A169: XPD | B169: Paladio (una onza troy)
A170: XPF | B170: Franco CFP
A171: XPT | B171: Platino (una onza troy)
A172: XSU | B172: SUCRE
A173: XTS | B173: Reservado para pruebas
A174: XUA | B174: Unidad de cuenta BAD
A175: XXX | B175: Sin divisa
A176: YER | B176: Rial yemení
A177: ZAR | B177: Rand
A178: ZMW | B178: Kwacha zambiano
A179: ZWL | B179: Dólar zimbabuense

Sheet Hoja1
